Department Family,Entity,Date Paid,Expense Type,Expense Area,Supplier,Transaction Number,Amount (�),Supplier VAT Registration Number
BEIS,Met Office,2024-02-08,11 SERVICES,CHIEF FINANCIAL OFFICER,ADT FIRE AND SECURITY PLC,488488,710.35,413633086
BEIS,Met Office,2024-02-02,FIXTURE & FITTINGS,CHIEF FINANCIAL OFFICER,AKHTER COMPUTERS LTD,488171,39435.63,532262963
BEIS,Met Office,2024-02-20,11 SERVICES,CHIEF FINANCIAL OFFICER,ALLSTAR BUSINESS SOLUTIONS LTD,488957,2981.27,747880191
BEIS,Met Office,2024-02-05,11 SERVICES,CHIEF FINANCIAL OFFICER,ALLSTAR BUSINESS SOLUTIONS LTD,488366,3253.16,747880191
BEIS,Met Office,2024-02-16,13 MISCELLANEOUS,CHIEF FINANCIAL OFFICER,ANTRIM HILLS SPRING WATER CO LTD,488827,27,517173455
BEIS,Met Office,2024-02-13,11 SERVICES,CHIEF FINANCIAL OFFICER,ANVIL MOBILE LIMITED,488662,82.6,981686175
BEIS,Met Office,2024-02-14,11 SERVICES,CHIEF FINANCIAL OFFICER,APPLE CENTRAL TAXIS,488759,1802.8,449238720
BEIS,Met Office,2024-02-23,13 MISCELLANEOUS,CHIEF FINANCIAL OFFICER,ARTHUR J. GALLAGHER INSURANCE BROKERS LIMITED,488139,-7577.67,GB484746209
BEIS,Met Office,2024-02-13,13 MISCELLANEOUS,CHIEF FINANCIAL OFFICER,BANNER GROUP LIMITED,488715,4.39,GB391085740
BEIS,Met Office,2024-02-02,13 MISCELLANEOUS,CHIEF FINANCIAL OFFICER,BANNER GROUP LIMITED,488272,10,GB391085740
BEIS,Met Office,2024-02-20,13 MISCELLANEOUS,CHIEF FINANCIAL OFFICER,BANNER GROUP LIMITED,488954,13.51,GB391085740
BEIS,Met Office,2024-02-28,06 ACCOMMODATION,CHIEF FINANCIAL OFFICER,Belfast International Airport Ltd,489059,296.25,617777601
BEIS,Met Office,2024-02-29,13 MISCELLANEOUS,CHIEF FINANCIAL OFFICER,Belfast International Airport Ltd,489229,1936.32,617777601
BEIS,Met Office,2024-02-26,06 ACCOMMODATION,CHIEF FINANCIAL OFFICER,BIDVEST NOONAN UK LTD,489102,0.5,GB847176988
BEIS,Met Office,2024-02-26,06 ACCOMMODATION,CHIEF FINANCIAL OFFICER,BIDVEST NOONAN UK LTD,489102,0.5,GB847176988
BEIS,Met Office,2024-02-26,06 ACCOMMODATION,CHIEF FINANCIAL OFFICER,BIDVEST NOONAN UK LTD,489103,1,GB847176988
BEIS,Met Office,2024-02-05,06 ACCOMMODATION,CHIEF FINANCIAL OFFICER,BIDVEST NOONAN UK LTD,488203,63.87,GB847176988
BEIS,Met Office,2024-02-05,06 ACCOMMODATION,CHIEF FINANCIAL OFFICER,BIDVEST NOONAN UK LTD,488379,191.01,GB847176988
BEIS,Met Office,2024-02-26,06 ACCOMMODATION,CHIEF FINANCIAL OFFICER,BIDVEST NOONAN UK LTD,489103,199.43,GB847176988
BEIS,Met Office,2024-02-26,06 ACCOMMODATION,CHIEF FINANCIAL OFFICER,BIDVEST NOONAN UK LTD,489102,500.58,GB847176988
BEIS,Met Office,2024-02-26,06 ACCOMMODATION,CHIEF FINANCIAL OFFICER,BIDVEST NOONAN UK LTD,489103,911.54,GB847176988
BEIS,Met Office,2024-02-28,06 ACCOMMODATION,CHIEF FINANCIAL OFFICER,Biffa Waste Services Ltd,489124,50.76,537911627
BEIS,Met Office,2024-02-28,06 ACCOMMODATION,CHIEF FINANCIAL OFFICER,Biffa Waste Services Ltd,489123,52.97,537911627
BEIS,Met Office,2024-02-28,06 ACCOMMODATION,CHIEF FINANCIAL OFFICER,Biffa Waste Services Ltd,489127,86.06,537911627
BEIS,Met Office,2024-02-28,06 ACCOMMODATION,CHIEF FINANCIAL OFFICER,Biffa Waste Services Ltd,489120,94.9,537911627
BEIS,Met Office,2024-02-28,06 ACCOMMODATION,CHIEF FINANCIAL OFFICER,Biffa Waste Services Ltd,489129,130.52,537911627
BEIS,Met Office,2024-02-28,06 ACCOMMODATION,CHIEF FINANCIAL OFFICER,Biffa Waste Services Ltd,489122,369.98,537911627
BEIS,Met Office,2024-02-28,06 ACCOMMODATION,CHIEF FINANCIAL OFFICER,Biffa Waste Services Ltd,489126,501.28,537911627
BEIS,Met Office,2024-02-28,06 ACCOMMODATION,CHIEF FINANCIAL OFFICER,Biffa Waste Services Ltd,489125,724.88,537911627
BEIS,Met Office,2024-02-28,06 ACCOMMODATION,CHIEF FINANCIAL OFFICER,Biffa Waste Services Ltd,489121,736.84,537911627
BEIS,Met Office,2024-02-28,06 ACCOMMODATION,CHIEF FINANCIAL OFFICER,Biffa Waste Services Ltd,489128,755.17,537911627
BEIS,Met Office,2024-02-02,11 SERVICES,CHIEF FINANCIAL OFFICER,British Red Cross Society,488302,819,706926227
BEIS,Met Office,2024-02-20,11 SERVICES,CHIEF FINANCIAL OFFICER,BT GLOBAL SERVICES,488925,514.03,245719348
BEIS,Met Office,2024-02-20,11 SERVICES,CHIEF FINANCIAL OFFICER,BT GLOBAL SERVICES,488965,5778.86,245719348
BEIS,Met Office,2024-02-06,11 SERVICES,CHIEF FINANCIAL OFFICER,BT plc,488190,9584.64,245719348
BEIS,Met Office,2024-02-13,06 ACCOMMODATION,CHIEF FINANCIAL OFFICER,BUILDING PROTECTION SYSTEMS (NI) LTD,488607,76.69,366309834
BEIS,Met Office,2024-02-02,06 ACCOMMODATION,CHIEF FINANCIAL OFFICER,BUSINESS SUPPORT CENTRE LTD,488265,186.02,927365208
BEIS,Met Office,2024-02-01,06 ACCOMMODATION,CHIEF FINANCIAL OFFICER,CALOR GAS LIMITED,487939,-34.25,207610984
BEIS,Met Office,2024-02-01,06 ACCOMMODATION,CHIEF FINANCIAL OFFICER,CALOR GAS LIMITED,488192,19.61,207610984
BEIS,Met Office,2024-02-01,06 ACCOMMODATION,CHIEF FINANCIAL OFFICER,CALOR GAS LIMITED,488191,34.25,207610984
BEIS,Met Office,2024-02-01,06 ACCOMMODATION,CHIEF FINANCIAL OFFICER,CALOR GAS LIMITED,488194,34.25,207610984
BEIS,Met Office,2024-02-01,06 ACCOMMODATION,CHIEF FINANCIAL OFFICER,CALOR GAS LIMITED,488195,34.25,207610984
BEIS,Met Office,2024-02-01,06 ACCOMMODATION,CHIEF FINANCIAL OFFICER,CALOR GAS LIMITED,488196,34.25,207610984
BEIS,Met Office,2024-02-01,06 ACCOMMODATION,CHIEF FINANCIAL OFFICER,CALOR GAS LIMITED,488197,34.25,207610984
BEIS,Met Office,2024-02-01,06 ACCOMMODATION,CHIEF FINANCIAL OFFICER,CALOR GAS LIMITED,488193,49.18,207610984
BEIS,Met Office,2024-02-19,06 ACCOMMODATION,CHIEF FINANCIAL OFFICER,CALOR GAS LIMITED,488902,535,207610984
BEIS,Met Office,2024-02-12,13 MISCELLANEOUS,CHIEF FINANCIAL OFFICER,CANON UK LTD,488648,2989.5,523797128
BEIS,Met Office,2024-02-02,13 MISCELLANEOUS,CHIEF FINANCIAL OFFICER,CARDIFF EXECUTIVE CENTRE LTD,488308,10.84,864497378
BEIS,Met Office,2024-02-02,06 ACCOMMODATION,CHIEF FINANCIAL OFFICER,CARDIFF EXECUTIVE CENTRE LTD,488268,2470,864497378
BEIS,Met Office,2024-02-28,06 ACCOMMODATION,CHIEF FINANCIAL OFFICER,CBRE MANAGED SERVICES LTD,488046,1,853936883
BEIS,Met Office,2024-02-28,06 ACCOMMODATION,CHIEF FINANCIAL OFFICER,CBRE MANAGED SERVICES LTD,488047,1,853936883
BEIS,Met Office,2024-02-28,06 ACCOMMODATION,CHIEF FINANCIAL OFFICER,CBRE MANAGED SERVICES LTD,488958,1,853936883
BEIS,Met Office,2024-02-28,06 ACCOMMODATION,CHIEF FINANCIAL OFFICER,CBRE MANAGED SERVICES LTD,488959,1,853936883
BEIS,Met Office,2024-02-14,06 ACCOMMODATION,CHIEF FINANCIAL OFFICER,CBRE MANAGED SERVICES LTD,488068,11571.91,853936883
BEIS,Met Office,2024-02-28,06 ACCOMMODATION,CHIEF FINANCIAL OFFICER,CBRE MANAGED SERVICES LTD,488047,22222.59,853936883
BEIS,Met Office,2024-02-28,06 ACCOMMODATION,CHIEF FINANCIAL OFFICER,CBRE MANAGED SERVICES LTD,488958,31527.69,853936883
BEIS,Met Office,2024-02-14,06 ACCOMMODATION,CHIEF FINANCIAL OFFICER,CBRE MANAGED SERVICES LTD,488069,31743.88,853936883
BEIS,Met Office,2024-02-28,06 ACCOMMODATION,CHIEF FINANCIAL OFFICER,CBRE MANAGED SERVICES LTD,488046,169499.01,853936883
BEIS,Met Office,2024-02-28,06 ACCOMMODATION,CHIEF FINANCIAL OFFICER,CBRE MANAGED SERVICES LTD,488959,169499.01,853936883
BEIS,Met Office,2024-02-23,PLANT AND EQUIPMENT,CHIEF FINANCIAL OFFICER,CBRE MANAGED SERVICES LTD,488987,185467.58,853936883
BEIS,Met Office,2024-02-21,08 SOFTWARE LICENCES,CHIEF FINANCIAL OFFICER,CEMAR,488950,850,915042161
BEIS,Met Office,2024-02-23,FIXTURE & FITTINGS,CHIEF FINANCIAL OFFICER,CHRISALIS REFURBISHMENT LTD,489055,1000,920904345
BEIS,Met Office,2024-02-27,13 MISCELLANEOUS,CHIEF FINANCIAL OFFICER,City Of Edinburgh Council,489178,1.4,663795391
BEIS,Met Office,2024-02-02,13 MISCELLANEOUS,CHIEF FINANCIAL OFFICER,COURIER FORCE,488301,165,924397208
BEIS,Met Office,2024-02-20,13 MISCELLANEOUS,CHIEF FINANCIAL OFFICER,COURIER FORCE,488948,215,924397208
BEIS,Met Office,2024-02-20,13 MISCELLANEOUS,CHIEF FINANCIAL OFFICER,COURIER FORCE,488922,445,924397208
BEIS,Met Office,2024-02-14,13 MISCELLANEOUS,CHIEF FINANCIAL OFFICER,COURIER FORCE,488722,655,924397208
BEIS,Met Office,2024-02-14,06 ACCOMMODATION,CHIEF FINANCIAL OFFICER,DINNET & KINORD ESTATES,488663,4132.72,267044752
BEIS,Met Office,2024-02-05,13 MISCELLANEOUS,CHIEF FINANCIAL OFFICER,DWYFOR COFFEE COMPANY LTD,488380,48.9,559811116
BEIS,Met Office,2024-02-28,13 MISCELLANEOUS,CHIEF FINANCIAL OFFICER,EDEN SPRINGS UK LTD,489187,387.81,232160411
BEIS,Met Office,2024-02-19,06 ACCOMMODATION,CHIEF FINANCIAL OFFICER,EDF ENERGY CUSTOMERS PLC,488799,21936.53,523041202
BEIS,Met Office,2024-02-12,06 ACCOMMODATION,CHIEF FINANCIAL OFFICER,EDF ENERGY CUSTOMERS PLC,488370,205020.21,523041202
BEIS,Met Office,2024-02-12,06 ACCOMMODATION,CHIEF FINANCIAL OFFICER,EDF ENERGY CUSTOMERS PLC,488371,213205.84,523041202
BEIS,Met Office,2024-02-12,06 ACCOMMODATION,CHIEF FINANCIAL OFFICER,EDF ENERGY CUSTOMERS PLC,488369,607190.14,523041202
BEIS,Met Office,2024-02-21,11 SERVICES,CHIEF FINANCIAL OFFICER,EIR,25628,57.84,4736919B
BEIS,Met Office,2024-02-05,03 STAFF COSTS T&S,CHIEF FINANCIAL OFFICER,ENTERPRISE RENT A CAR UK LTD,488334,90.65,215557314
BEIS,Met Office,2024-02-02,03 STAFF COSTS T&S,CHIEF FINANCIAL OFFICER,ENTERPRISE RENT A CAR UK LTD,488286,142.73,215557314
BEIS,Met Office,2024-02-26,03 STAFF COSTS T&S,CHIEF FINANCIAL OFFICER,ENTERPRISE RENT A CAR UK LTD,489115,582.44,215557314
BEIS,Met Office,2024-02-19,03 STAFF COSTS T&S,CHIEF FINANCIAL OFFICER,ENTERPRISE RENT A CAR UK LTD,488899,1352.27,215557314
BEIS,Met Office,2024-02-20,03 STAFF COSTS T&S,CHIEF FINANCIAL OFFICER,ENTERPRISE RENT A CAR UK LTD,488956,2010.51,215557314
BEIS,Met Office,2024-02-06,03 STAFF COSTS T&S,CHIEF FINANCIAL OFFICER,ENTERPRISE RENT A CAR UK LTD,488425,2757.34,215557314
BEIS,Met Office,2024-02-27,03 STAFF COSTS T&S,CHIEF FINANCIAL OFFICER,ENTERPRISE RENT A CAR UK LTD,489116,3668.91,215557314
BEIS,Met Office,2024-02-13,03 STAFF COSTS T&S,CHIEF FINANCIAL OFFICER,ENTERPRISE RENT A CAR UK LTD,488717,4244.54,215557314
BEIS,Met Office,2024-02-21,11 SERVICES,CHIEF FINANCIAL OFFICER,EPTURA UK LIMITED,487290,8605,756256215
BEIS,Met Office,2024-02-28,11 SERVICES,CHIEF FINANCIAL OFFICER,EPTURA UK LIMITED,487763,28610,756256215
BEIS,Met Office,2024-02-26,11 SERVICES,CHIEF FINANCIAL OFFICER,EQUINITI ICS LTD,489158,-2533.28,915967778
BEIS,Met Office,2024-02-26,11 SERVICES,CHIEF FINANCIAL OFFICER,EQUINITI ICS LTD,439120,2533.28,915967778
BEIS,Met Office,2024-02-22,13 MISCELLANEOUS,CHIEF FINANCIAL OFFICER,Exeter & Devon Airport Limited,471520,-2831.07,168173978
BEIS,Met Office,2024-02-22,13 MISCELLANEOUS,CHIEF FINANCIAL OFFICER,Exeter & Devon Airport Limited,428733,2831.07,168173978
BEIS,Met Office,2024-02-12,11 SERVICES,CHIEF FINANCIAL OFFICER,EXPONENTIAL-E,488654,151.2,GB798572653
BEIS,Met Office,2024-02-12,06 ACCOMMODATION,CHIEF FINANCIAL OFFICER,FAIR ISLE ELECTRICITY COMPANY LTD,488430,209.32,774548783
BEIS,Met Office,2024-02-05,11 SERVICES,CHIEF FINANCIAL OFFICER,FLYFORM LTD,488259,24638.69,237333808
BEIS,Met Office,2024-02-13,11 SERVICES,CHIEF FINANCIAL OFFICER,GAMMA TELECOM LTD,488694,59.52,823820344
BEIS,Met Office,2024-02-13,11 SERVICES,CHIEF FINANCIAL OFFICER,GAMMA TELECOM LTD,488694,28568.57,823820344
BEIS,Met Office,2024-02-12,11 SERVICES,CHIEF FINANCIAL OFFICER,GB GROUP PLC,488659,151.75,539716218
BEIS,Met Office,2024-02-13,11 SERVICES,CHIEF FINANCIAL OFFICER,GIBRALTAR NYNEX COMMUNICATIONS LTD,488693,660,NOVAT
BEIS,Met Office,2024-02-27,13 MISCELLANEOUS,CHIEF FINANCIAL OFFICER,GOODMAN CENTRAL RECEIPTS ACCOUNT,489177,4.5,813041380
BEIS,Met Office,2024-02-02,06 ACCOMMODATION,CHIEF FINANCIAL OFFICER,GRS BUILDING SERVICES SOUTH-WEST,488287,4300,-
BEIS,Met Office,2024-02-20,06 ACCOMMODATION,CHIEF FINANCIAL OFFICER,GRS BUILDING SERVICES SOUTH-WEST,488962,8460.83,-
BEIS,Met Office,2024-02-12,08 SOFTWARE LICENCES,CHIEF FINANCIAL OFFICER,IBISWORLD LIMITED,488649,7500,GB105 385137
BEIS,Met Office,2024-02-16,11 SERVICES,CHIEF FINANCIAL OFFICER,INTEROUTE COMMUNICATIONS LIMITED,488870,8000,832 7071 39
BEIS,Met Office,2024-02-09,11 SERVICES,CHIEF FINANCIAL OFFICER,JERSEY TELECOM,488434,1292.4,NOTVATREG
BEIS,Met Office,2024-02-05,11 SERVICES,CHIEF FINANCIAL OFFICER,LICENCE BUREAU LTD,488330,135.12,820219467
BEIS,Met Office,2024-02-26,08 SOFTWARE LICENCES,CHIEF FINANCIAL OFFICER,LOGICALIS UK Limited,489104,82756.82,864475392
BEIS,Met Office,2024-02-07,11 SERVICES,CHIEF FINANCIAL OFFICER,MAWASEM LTD,486653,189803.24,197694731
BEIS,Met Office,2024-02-26,11 SERVICES,CHIEF FINANCIAL OFFICER,MAWASEM LTD,488790,230541.16,197694731
BEIS,Met Office,2024-02-09,11 SERVICES,CHIEF FINANCIAL OFFICER,MAWASEM LTD,486809,299719.99,197694731
BEIS,Met Office,2024-02-07,11 SERVICES,CHIEF FINANCIAL OFFICER,MITIE SECURITY LTD,488314,11658.4,416706654
BEIS,Met Office,2024-02-16,06 ACCOMMODATION,CHIEF FINANCIAL OFFICER,MORSAFE LTD,488854,2925,856010741
BEIS,Met Office,2024-02-15,11 SERVICES,CHIEF FINANCIAL OFFICER,Morton Fraser LLP,488829,137.5,269129336
BEIS,Met Office,2024-02-02,06 ACCOMMODATION,CHIEF FINANCIAL OFFICER,MOUNT CHARLES GROUP LTD,488269,496.27,517116274
BEIS,Met Office,2024-02-06,11 SERVICES,CHIEF FINANCIAL OFFICER,MRI SOFTWARE LIMITED,488432,2700,916220551
BEIS,Met Office,2024-02-06,11 SERVICES,CHIEF FINANCIAL OFFICER,MRI SOFTWARE LIMITED,488431,3720,916220551
BEIS,Met Office,2024-02-22,06 ACCOMMODATION,CHIEF FINANCIAL OFFICER,NESS ENGINEERING LTD,489017,524.33,430188472
BEIS,Met Office,2024-02-02,13 MISCELLANEOUS,CHIEF FINANCIAL OFFICER,NORFOLK WATER LIMITED,488270,28.85,833 6292 22
BEIS,Met Office,2024-02-02,13 MISCELLANEOUS,CHIEF FINANCIAL OFFICER,NORSCOTT VENDING SERVICES LTD,488264,22.5,751402071
BEIS,Met Office,2024-02-23,13 MISCELLANEOUS,CHIEF FINANCIAL OFFICER,NORSCOTT VENDING SERVICES LTD,489054,90,751402071
BEIS,Met Office,2024-02-02,13 MISCELLANEOUS,CHIEF FINANCIAL OFFICER,NORSCOTT VENDING SERVICES LTD,488307,203.4,751402071
BEIS,Met Office,2024-02-20,13 MISCELLANEOUS,CHIEF FINANCIAL OFFICER,NORSK GLOBAL,488964,55.06,GB635843324
BEIS,Met Office,2024-02-14,13 MISCELLANEOUS,CHIEF FINANCIAL OFFICER,NORSK GLOBAL,488761,761.52,GB635843324
BEIS,Met Office,2024-02-14,13 MISCELLANEOUS,CHIEF FINANCIAL OFFICER,NORSK GLOBAL,488760,1802.29,GB635843324
BEIS,Met Office,2024-02-06,11 SERVICES,CHIEF FINANCIAL OFFICER,OPEN TEXT UK LTD,488429,100,837871308
BEIS,Met Office,2024-02-08,13 MISCELLANEOUS,CHIEF FINANCIAL OFFICER,Parcelforce,488554,15.09,GB 243 1700 02
BEIS,Met Office,2024-02-16,13 MISCELLANEOUS,CHIEF FINANCIAL OFFICER,Parcelforce,488857,135.08,GB 243 1700 02
BEIS,Met Office,2024-02-02,13 MISCELLANEOUS,CHIEF FINANCIAL OFFICER,POSTURITE (UK) LTD,488167,9.95,583565114
BEIS,Met Office,2024-02-13,13 MISCELLANEOUS,CHIEF FINANCIAL OFFICER,POSTURITE (UK) LTD,488551,30.35,583565114
BEIS,Met Office,2024-02-14,13 MISCELLANEOUS,CHIEF FINANCIAL OFFICER,POSTURITE (UK) LTD,488720,36.74,583565114
BEIS,Met Office,2024-02-02,13 MISCELLANEOUS,CHIEF FINANCIAL OFFICER,POSTURITE (UK) LTD,488205,42.81,583565114
BEIS,Met Office,2024-02-02,13 MISCELLANEOUS,CHIEF FINANCIAL OFFICER,POSTURITE (UK) LTD,486910,50,583565114
BEIS,Met Office,2024-02-02,13 MISCELLANEOUS,CHIEF FINANCIAL OFFICER,POSTURITE (UK) LTD,487107,50,583565114
BEIS,Met Office,2024-02-07,13 MISCELLANEOUS,CHIEF FINANCIAL OFFICER,POSTURITE (UK) LTD,488333,50,583565114
BEIS,Met Office,2024-02-07,13 MISCELLANEOUS,CHIEF FINANCIAL OFFICER,POSTURITE (UK) LTD,488483,50,583565114
BEIS,Met Office,2024-02-13,13 MISCELLANEOUS,CHIEF FINANCIAL OFFICER,POSTURITE (UK) LTD,488719,50,583565114
BEIS,Met Office,2024-02-02,13 MISCELLANEOUS,CHIEF FINANCIAL OFFICER,POSTURITE (UK) LTD,488204,56.31,583565114
BEIS,Met Office,2024-02-13,13 MISCELLANEOUS,CHIEF FINANCIAL OFFICER,POSTURITE (UK) LTD,488550,56.56,583565114
BEIS,Met Office,2024-02-02,13 MISCELLANEOUS,CHIEF FINANCIAL OFFICER,POSTURITE (UK) LTD,487875,112.21,583565114
BEIS,Met Office,2024-02-07,13 MISCELLANEOUS,CHIEF FINANCIAL OFFICER,POSTURITE (UK) LTD,488331,124.37,583565114
BEIS,Met Office,2024-02-02,13 MISCELLANEOUS,CHIEF FINANCIAL OFFICER,POSTURITE (UK) LTD,488283,265.42,583565114
BEIS,Met Office,2024-02-02,13 MISCELLANEOUS,CHIEF FINANCIAL OFFICER,POSTURITE (UK) LTD,488284,334.11,583565114
BEIS,Met Office,2024-02-07,13 MISCELLANEOUS,CHIEF FINANCIAL OFFICER,POSTURITE (UK) LTD,488332,642.9,583565114
BEIS,Met Office,2024-02-07,13 MISCELLANEOUS,CHIEF FINANCIAL OFFICER,POSTURITE (UK) LTD,488482,878.59,583565114
BEIS,Met Office,2024-02-21,06 ACCOMMODATION,CHIEF FINANCIAL OFFICER,POWER NI ENERGY LTD,488995,119.09,617518142
BEIS,Met Office,2024-02-12,06 ACCOMMODATION,CHIEF FINANCIAL OFFICER,POWER NI ENERGY LTD,488368,1078.62,617518142
BEIS,Met Office,2024-02-20,13 MISCELLANEOUS,CHIEF FINANCIAL OFFICER,POWER PACKING EXPORT SERVICE,488951,15.35,249 7326 31
BEIS,Met Office,2024-02-20,13 MISCELLANEOUS,CHIEF FINANCIAL OFFICER,POWER PACKING EXPORT SERVICE,488952,24.83,249 7326 31
BEIS,Met Office,2024-02-16,13 MISCELLANEOUS,CHIEF FINANCIAL OFFICER,POWER PACKING EXPORT SERVICE,488856,75,249 7326 31
BEIS,Met Office,2024-02-08,13 MISCELLANEOUS,CHIEF FINANCIAL OFFICER,POWER PACKING EXPORT SERVICE,488517,175,249 7326 31
BEIS,Met Office,2024-02-02,13 MISCELLANEOUS,CHIEF FINANCIAL OFFICER,POWER PACKING EXPORT SERVICE,488260,449,249 7326 31
BEIS,Met Office,2024-02-02,13 MISCELLANEOUS,CHIEF FINANCIAL OFFICER,POWER PACKING EXPORT SERVICE,488261,449,249 7326 31
BEIS,Met Office,2024-02-08,13 MISCELLANEOUS,CHIEF FINANCIAL OFFICER,POWER PACKING EXPORT SERVICE,488497,715,249 7326 31
BEIS,Met Office,2024-02-08,13 MISCELLANEOUS,CHIEF FINANCIAL OFFICER,POWER PACKING EXPORT SERVICE,488522,1259,249 7326 31
BEIS,Met Office,2024-02-15,13 MISCELLANEOUS,CHIEF FINANCIAL OFFICER,POWER PACKING EXPORT SERVICE,488805,1397,249 7326 31
BEIS,Met Office,2024-02-07,13 MISCELLANEOUS,CHIEF FINANCIAL OFFICER,POWER PACKING EXPORT SERVICE,488479,1896,249 7326 31
BEIS,Met Office,2024-02-15,13 MISCELLANEOUS,CHIEF FINANCIAL OFFICER,POWER PACKING EXPORT SERVICE,488803,2665,249 7326 31
BEIS,Met Office,2024-02-14,13 MISCELLANEOUS,CHIEF FINANCIAL OFFICER,POWER PACKING EXPORT SERVICE,488791,3835,249 7326 31
BEIS,Met Office,2024-02-29,11 SERVICES,CHIEF FINANCIAL OFFICER,PRIMETECH (UK) LTD,489151,2220,694212039
BEIS,Met Office,2024-02-27,03 STAFF COSTS T&S,CHIEF FINANCIAL OFFICER,RAINBOW CITY TAXIS,489182,42.25,724295039
BEIS,Met Office,2024-02-14,06 ACCOMMODATION,CHIEF FINANCIAL OFFICER,REDACTED � PERSONAL DATA,488402,520,-
BEIS,Met Office,2024-02-12,13 MISCELLANEOUS,CHIEF FINANCIAL OFFICER,RICHARD JAMES INTERNATIONAL LIMITED,488664,151.95,567 5529 01
BEIS,Met Office,2024-02-12,13 MISCELLANEOUS,CHIEF FINANCIAL OFFICER,RICHARD JAMES INTERNATIONAL LIMITED,488668,151.95,567 5529 01
BEIS,Met Office,2024-02-12,13 MISCELLANEOUS,CHIEF FINANCIAL OFFICER,RICHARD JAMES INTERNATIONAL LIMITED,488667,183.75,567 5529 01
BEIS,Met Office,2024-02-15,13 MISCELLANEOUS,CHIEF FINANCIAL OFFICER,RICHARD JAMES INTERNATIONAL LIMITED,488697,196.95,567 5529 01
BEIS,Met Office,2024-02-14,13 MISCELLANEOUS,CHIEF FINANCIAL OFFICER,RICHARD JAMES INTERNATIONAL LIMITED,488698,1540.55,567 5529 01
BEIS,Met Office,2024-02-08,06 ACCOMMODATION,CHIEF FINANCIAL OFFICER,RIVER RIDGE,488514,133.12,176286083
BEIS,Met Office,2024-02-14,06 ACCOMMODATION,CHIEF FINANCIAL OFFICER,SAFESTORE LTD,488142,-1133.93,722887607
BEIS,Met Office,2024-02-14,06 ACCOMMODATION,CHIEF FINANCIAL OFFICER,SAFESTORE LTD,488653,3187.71,722887607
BEIS,Met Office,2024-02-13,06 ACCOMMODATION,CHIEF FINANCIAL OFFICER,Severn Trent Water Ltd,488600,249.51,486985565
BEIS,Met Office,2024-02-19,06 ACCOMMODATION,CHIEF FINANCIAL OFFICER,SHETLAND CLEANING SERVICES,488905,831.13,430028404
BEIS,Met Office,2024-02-13,06 ACCOMMODATION,CHIEF FINANCIAL OFFICER,SHETLAND GRASSCUTTING,488716,1377.5,978367258
BEIS,Met Office,2024-02-26,06 ACCOMMODATION,CHIEF FINANCIAL OFFICER,SIGNS EXPRESS (EXETER),489050,73.36,631397439
BEIS,Met Office,2024-02-28,13 MISCELLANEOUS,CHIEF FINANCIAL OFFICER,SIGNS EXPRESS (EXETER),489209,384.9,631397439
BEIS,Met Office,2024-02-28,06 ACCOMMODATION,CHIEF FINANCIAL OFFICER,SIGNS EXPRESS (EXETER),489208,703,631397439
BEIS,Met Office,2024-02-28,06 ACCOMMODATION,CHIEF FINANCIAL OFFICER,SIGNS EXPRESS (EXETER),489208,703,631397439
BEIS,Met Office,2024-02-28,06 ACCOMMODATION,CHIEF FINANCIAL OFFICER,SIGNS EXPRESS (EXETER),489207,1844,631397439
BEIS,Met Office,2024-02-23,06 ACCOMMODATION,CHIEF FINANCIAL OFFICER,South West Water Ltd,489027,55.2,236873674
BEIS,Met Office,2024-02-02,06 ACCOMMODATION,CHIEF FINANCIAL OFFICER,South West Water Ltd,488303,180.51,236873674
BEIS,Met Office,2024-02-21,06 ACCOMMODATION,CHIEF FINANCIAL OFFICER,South West Water Ltd,488994,1012.46,236873674
BEIS,Met Office,2024-02-13,06 ACCOMMODATION,CHIEF FINANCIAL OFFICER,South West Water Ltd,488601,3483.01,236873674
BEIS,Met Office,2024-02-27,06 ACCOMMODATION,CHIEF FINANCIAL OFFICER,SSE ENERGY SUPPLY LIMITED T/A,423778,-150,553769603
BEIS,Met Office,2024-02-27,06 ACCOMMODATION,CHIEF FINANCIAL OFFICER,SSE ENERGY SUPPLY LIMITED T/A,489216,150,553769603
BEIS,Met Office,2024-02-13,06 ACCOMMODATION,CHIEF FINANCIAL OFFICER,St. Modwen Properties Limited,488724,48.29,005489575
BEIS,Met Office,2024-02-28,06 ACCOMMODATION,CHIEF FINANCIAL OFFICER,St. Modwen Properties Limited,489174,112.5,005489575
BEIS,Met Office,2024-02-28,06 ACCOMMODATION,CHIEF FINANCIAL OFFICER,St. Modwen Properties Limited,489172,750,005489575
BEIS,Met Office,2024-02-12,11 SERVICES,CHIEF FINANCIAL OFFICER,STARK SOFTWARE INTERNATIONAL LTD,488059,5689.86,644372829
BEIS,Met Office,2024-02-14,11 SERVICES,CHIEF FINANCIAL OFFICER,SURE SOUTH ATLANTIC LTD,488769,2124.59,NOVATREG
BEIS,Met Office,2024-02-16,11 SERVICES,CHIEF FINANCIAL OFFICER,SURE SOUTH ATLANTIC LTD,488831,4801,-
BEIS,Met Office,2024-02-16,11 SERVICES,CHIEF FINANCIAL OFFICER,SURE SOUTH ATLANTIC LTD,488832,6478,-
BEIS,Met Office,2024-02-28,11 SERVICES,CHIEF FINANCIAL OFFICER,SWISSCOM (SCHWEIZ) AG,488602,101.73,-
BEIS,Met Office,2024-02-28,11 SERVICES,CHIEF FINANCIAL OFFICER,TELEFONICA O2 UK LIMITED,489164,57.4,778603785
BEIS,Met Office,2024-02-16,11 SERVICES,CHIEF FINANCIAL OFFICER,TELEFONICA O2 UK LIMITED,488800,3977.89,778603785
BEIS,Met Office,2024-02-07,11 SERVICES,CHIEF FINANCIAL OFFICER,THE STRENGTHS PEOPLE LTD,488477,1200,206868488
BEIS,Met Office,2024-02-09,FIXTURE & FITTINGS,CHIEF FINANCIAL OFFICER,THORLUX LIGHTING,488616,7841.46,GB 109 939 440
BEIS,Met Office,2024-02-08,11 SERVICES,CHIEF FINANCIAL OFFICER,TIMEWATCH PLC,488540,1200,461555250
BEIS,Met Office,2024-02-06,06 ACCOMMODATION,CHIEF FINANCIAL OFFICER,TOP RANK CLEANING SERVICES LTD,488439,950.56,-
BEIS,Met Office,2024-02-19,06 ACCOMMODATION,CHIEF FINANCIAL OFFICER,TOTAL GAS & POWER LIMITED,488830,1561.74,689638949
BEIS,Met Office,2024-02-19,06 ACCOMMODATION,CHIEF FINANCIAL OFFICER,TOTAL GAS & POWER LIMITED,488828,26270.88,689638949
BEIS,Met Office,2024-02-08,06 ACCOMMODATION,CHIEF FINANCIAL OFFICER,UNIVERSAL CLEANING SERVICES,488478,207.15,-
BEIS,Met Office,2024-02-08,13 MISCELLANEOUS,CHIEF FINANCIAL OFFICER,University Of Reading,488538,9.31,200012659
BEIS,Met Office,2024-02-08,11 SERVICES,CHIEF FINANCIAL OFFICER,Vodafone Limited,488545,10.21,569953277
BEIS,Met Office,2024-02-08,11 SERVICES,CHIEF FINANCIAL OFFICER,Vodafone Limited,488546,291.8,569953277
BEIS,Met Office,2024-02-08,11 SERVICES,CHIEF FINANCIAL OFFICER,Vodafone Limited,488547,418.59,569953277
BEIS,Met Office,2024-02-01,11 SERVICES,CHIEF FINANCIAL OFFICER,WEBEX COMMUNICATIONS UK LTD,488121,209.92,815974302
BEIS,Met Office,2024-02-28,11 SERVICES,CHIEF FINANCIAL OFFICER,WEBEX COMMUNICATIONS UK LTD,489165,209.92,815974302
BEIS,Met Office,2024-02-15,03 STAFF COSTS T&S,CHIEF FINANCIAL OFFICER,WESTEXE GROUP,488789,60,913 4460 43
BEIS,Met Office,2024-02-28,11 SERVICES,CHIEF FINANCIAL OFFICER,WESTEXE GROUP,489188,60,913 4460 43
BEIS,Met Office,2024-02-29,11 SERVICES,CHIEF FINANCIAL OFFICER,WESTEXE GROUP,489267,60,913 4460 43
BEIS,Met Office,2024-02-14,11 SERVICES,CHIEF FINANCIAL OFFICER,WT CONSULTANCY (SW) LTD,488306,5975,223 4662 25
BEIS,Met Office,2024-02-14,11 SERVICES,CHIEF FINANCIAL OFFICER,WT CONSULTANCY (SW) LTD,488306,12675,223 4662 25
BEIS,Met Office,2024-02-12,11 SERVICES,MARKETS,ACCELERATION EMARKETING,488618,6623.08,848940776
BEIS,Met Office,2024-02-05,11 SERVICES,MARKETS,ADOPSTAR,488317,1325,115036848
BEIS,Met Office,2024-02-08,12 INTERNATIONAL,MARKETS,APPLIED SATELLITE TECHNOLOGY SYSTEMS LTD,488521,33.42,720108683
BEIS,Met Office,2024-02-02,11 SERVICES,MARKETS,BRYERS LLP,488263,288.5,609635917
BEIS,Met Office,2024-02-02,12 INTERNATIONAL,MARKETS,CROWN AGENTS BANK,488185,13143.55,-
BEIS,Met Office,2024-02-02,11 SERVICES,MARKETS,DBS FINANCE RECEIPTS CTS,488169,50185.78,888805068
BEIS,Met Office,2024-02-28,11 SERVICES,MARKETS,DEPT FOR SCIENCE INNOVATION & TECHNOLOGY,489228,540574.55,-
BEIS,Met Office,2024-02-07,11 SERVICES,MARKETS,EUMETNET - EIG,25575,287317.44,-
BEIS,Met Office,2024-02-01,12 INTERNATIONAL,MARKETS,FOXSTONES TRAINING AND LEARNING,488206,2950,-
BEIS,Met Office,2024-02-01,11 SERVICES,MARKETS,HITCH MARKETING LTD,488164,23830,137 9482 76
BEIS,Met Office,2024-02-07,11 SERVICES,MARKETS,"IBL SOFTWARE ENGINEERING, SPOL S.R.O.",25571,1654.83,SK2020241883
BEIS,Met Office,2024-02-14,11 SERVICES,MARKETS,"IBL SOFTWARE ENGINEERING, SPOL S.R.O.",25580,15102.68,SK2020241883
BEIS,Met Office,2024-02-28,08 SOFTWARE LICENCES,MARKETS,"IBL SOFTWARE ENGINEERING, SPOL S.R.O.",25609,15112.97,SK2020241883
BEIS,Met Office,2024-02-21,08 SOFTWARE LICENCES,MARKETS,"IBL SOFTWARE ENGINEERING, SPOL S.R.O.",25413,37855.99,SK2020241883
BEIS,Met Office,2024-02-21,08 SOFTWARE LICENCES,MARKETS,"IBL SOFTWARE ENGINEERING, SPOL S.R.O.",25387,54465.29,SK2020241883
BEIS,Met Office,2024-02-05,11 SERVICES,MARKETS,INMARSAT SOLUTIONS (CANADA) INC,488376,2112.26,766144223
BEIS,Met Office,2024-02-08,11 SERVICES,MARKETS,LHR BUSINESS SUPPORT CENTRE LTD,488539,33.64,927365404
BEIS,Met Office,2024-02-07,11 SERVICES,MARKETS,LHR BUSINESS SUPPORT CENTRE LTD,488489,42.88,927365404
BEIS,Met Office,2024-02-21,11 SERVICES,MARKETS,LONDON ECONOMICS LTD,488900,19792.4,769529863
BEIS,Met Office,2024-02-26,11 SERVICES,MARKETS,LONDON ECONOMICS LTD,489061,40463.25,769529863
BEIS,Met Office,2024-02-14,12 INTERNATIONAL,MARKETS,MACITECHSY SOLUTIONS,488553,740,-
BEIS,Met Office,2024-02-06,11 SERVICES,MARKETS,MADE TECH,488442,17300,938565184
BEIS,Met Office,2024-02-21,11 SERVICES,MARKETS,METEO-FRANCE AGENCE COMPTABLE SEC D2C,25348,6507.93,FR03180060030
BEIS,Met Office,2024-02-14,11 SERVICES,MARKETS,NSSL GLOBAL LTD,11382,43.18,725151948
BEIS,Met Office,2024-02-12,11 SERVICES,MARKETS,Ofcom,488515,8160,833012277
BEIS,Met Office,2024-02-07,12 INTERNATIONAL,MARKETS,REDACTED � PERSONAL DATA,11397,314.9,-
BEIS,Met Office,2024-02-07,12 INTERNATIONAL,MARKETS,REDACTED � PERSONAL DATA,11397,2873.46,-
BEIS,Met Office,2024-02-08,11 SERVICES,MARKETS,ROWE IT LTD,488537,3041.27,924964394
BEIS,Met Office,2024-02-09,11 SERVICES,MARKETS,ROWE IT LTD,488552,41850,924964394
BEIS,Met Office,2024-02-08,11 SERVICES,MARKETS,SPOKE (INTERACTIVE) LTD,488549,770,840156451
BEIS,Met Office,2024-02-20,11 SERVICES,MARKETS,SWANTECH LOGISTICS LTD,488836,3572.04,769332401
BEIS,Met Office,2024-02-07,11 SERVICES,MARKETS,THE STRENGTHS PEOPLE LTD,488476,1720,206868488
BEIS,Met Office,2024-02-07,11 SERVICES,MARKETS,THE STRENGTHS PEOPLE LTD,488475,1790,206868488
BEIS,Met Office,2024-02-28,11 SERVICES,MARKETS,UKRI,489227,24873.1,GB287461957
BEIS,Met Office,2024-02-28,11 SERVICES,MARKETS,University Of Bristol,489219,15296.51,991261800
BEIS,Met Office,2024-02-12,11 SERVICES,MARKETS,WESTPOINT CENTRE (DEVON) LTD,488651,250,585 6015 25
BEIS,Met Office,2024-02-05,11 SERVICES,MARKETS,WORLDPAY LTD,488367,25.75,991280207
BEIS,Met Office,2024-02-19,11 SERVICES,MARKETS,WORLDPAY LTD,488860,606.08,991280207
BEIS,Met Office,2024-02-07,11 SERVICES,OFFICE OF THE CEO,DEVON WILDLIFE ENTERPRISES LTD,488266,600,585473501
BEIS,Met Office,2024-02-15,11 SERVICES,OFFICE OF THE CEO,UK HEALTH SECURITY AGENCY,488718,14732.91,GB888849628
BEIS,Met Office,2024-02-23,CYCLESCHEME,OTHER,EDENRED EB (SHOPPING VOUCHERS),489057,436,649 503 520
BEIS,Met Office,2024-02-09,CYCLESCHEME,OTHER,EDENRED UK (CYCLESCHEME),488617,2762.6,649 503 520
BEIS,Met Office,2024-02-21,TRADE CREDITORS,OTHER,NATWEST COMMERCIAL CARDS DIVISION,488972,170712.57,N/A
BEIS,Met Office,2024-02-16,11 SERVICES,PEOPLE,ACTIVE LEARNING TEAM LTD,488853,1400,-
BEIS,Met Office,2024-02-27,08 SOFTWARE LICENCES,PEOPLE,BRIGHTCOVE INC,489021,3750,TAX 20-1579162
BEIS,Met Office,2024-02-05,08 SOFTWARE LICENCES,PEOPLE,CATALYST IT,488378,2270.82,978169262
BEIS,Met Office,2024-02-23,08 SOFTWARE LICENCES,PEOPLE,CIPHR,486378,-5000,242661124
BEIS,Met Office,2024-02-23,08 SOFTWARE LICENCES,PEOPLE,CIPHR,452401,5000,242661124
BEIS,Met Office,2024-02-29,11 SERVICES,PEOPLE,CIPHR,489294,8750,242661124
BEIS,Met Office,2024-02-29,08 SOFTWARE LICENCES,PEOPLE,CIPHR,489294,51527.5,242661124
BEIS,Met Office,2024-02-09,11 SERVICES,PEOPLE,CIVICA UK LIMITED,488605,7503.5,391171065
BEIS,Met Office,2024-02-06,13 MISCELLANEOUS,PEOPLE,EDENRED - CHILDCARE VOUCHERS,488401,8188.5,649 503 520
BEIS,Met Office,2024-02-14,13 MISCELLANEOUS,PEOPLE,EDENRED I&M (IRS VOUCHERS),488700,41330.4,649 503 520
BEIS,Met Office,2024-02-20,11 SERVICES,PEOPLE,FLOW CREATIVE,488855,2500,218318907
BEIS,Met Office,2024-02-22,11 SERVICES,PEOPLE,GQA QUALIFICATIONS LTD,489037,-240,-
BEIS,Met Office,2024-02-22,11 SERVICES,PEOPLE,GQA QUALIFICATIONS LTD,473218,240,-
BEIS,Met Office,2024-02-07,11 SERVICES,PEOPLE,HEALTH ASSURED LIMITED,488441,1120,927 5242 17
BEIS,Met Office,2024-02-19,11 SERVICES,PEOPLE,MAGPIE CREATIVE COMMUNICATIONS,488656,11065,117332539
BEIS,Met Office,2024-02-23,04 CONTRACTORS,PEOPLE,MATRIX SCM LIMITED,489051,210035.27,249 5734 68
BEIS,Met Office,2024-02-29,04 CONTRACTORS,PEOPLE,MATRIX SCM LIMITED,489298,210123.69,249 5734 68
BEIS,Met Office,2024-02-16,04 CONTRACTORS,PEOPLE,MATRIX SCM LIMITED,488862,233122.79,249 5734 68
BEIS,Met Office,2024-02-01,04 CONTRACTORS,PEOPLE,MATRIX SCM LIMITED,488262,241142.32,249 5734 68
BEIS,Met Office,2024-02-09,04 CONTRACTORS,PEOPLE,MATRIX SCM LIMITED,488608,271813.37,249 5734 68
BEIS,Met Office,2024-02-23,11 SERVICES,PEOPLE,NLA MEDIA ACCESS LTD,488990,2160.32,661865215
BEIS,Met Office,2024-02-23,11 SERVICES,PEOPLE,NLA MEDIA ACCESS LTD,488989,7201.07,661865215
BEIS,Met Office,2024-02-14,11 SERVICES,PEOPLE,PLURALSIGHT,11380,2544.87,EU826020045
BEIS,Met Office,2024-02-09,11 SERVICES,PEOPLE,REDACTED � PERSONAL DATA,487820,195,143043312
BEIS,Met Office,2024-02-09,11 SERVICES,PEOPLE,REDACTED � PERSONAL DATA,487818,375,143043312
BEIS,Met Office,2024-02-09,11 SERVICES,PEOPLE,REDACTED � PERSONAL DATA,487816,390,143043312
BEIS,Met Office,2024-02-14,11 SERVICES,PEOPLE,REDACTED � PERSONAL DATA,488650,741,143043312
BEIS,Met Office,2024-02-29,11 SERVICES,PEOPLE,REDACTED � PERSONAL DATA,489263,825,143043312
BEIS,Met Office,2024-02-09,11 SERVICES,PEOPLE,REDACTED � PERSONAL DATA,487815,4811,143043312
BEIS,Met Office,2024-02-14,11 SERVICES,PEOPLE,REDACTED � PERSONAL DATA,488652,22457.9,143043312
BEIS,Met Office,2024-02-09,11 SERVICES,PEOPLE,RESTORE RECORDS MANAGEMENT,488560,13.89,843 863011
BEIS,Met Office,2024-02-08,11 SERVICES,PEOPLE,RIVER TRAINING AND HR,488544,800,-
BEIS,Met Office,2024-02-07,11 SERVICES,PEOPLE,RUNTIME COLLECTIVE LTD T/A BRANDWATCH,488427,99330,754750710
BEIS,Met Office,2024-02-20,07 EQUIPMENT,PEOPLE,SWANTECH LOGISTICS LTD,488926,3265.48,769332401
BEIS,Met Office,2024-02-20,11 SERVICES,PEOPLE,TAYLOR HERRING PR,488485,6954,GB 201 1047 86
BEIS,Met Office,2024-02-02,11 SERVICES,PEOPLE,THE STRENGTHS PEOPLE LTD,487953,-1800,206868488
BEIS,Met Office,2024-02-02,11 SERVICES,PEOPLE,THE STRENGTHS PEOPLE LTD,472955,1800,206868488
BEIS,Met Office,2024-02-16,08 SOFTWARE LICENCES,PEOPLE,THRIVE CSR LIMITED,488725,11800,-
BEIS,Met Office,2024-02-06,11 SERVICES,PEOPLE,TP HEALTH LTD,488315,1473,883064608
BEIS,Met Office,2024-02-16,11 SERVICES,PEOPLE,WITH ALACRITY LTD,488861,6000,-
BEIS,Met Office,2024-02-14,13 MISCELLANEOUS,PEOPLE,YOTI LTD,488646,18.9,GB199947617
BEIS,Met Office,2024-02-02,11 SERVICES,PROGRAMMES,BAE SYSTEMS APPLIED INTELLIGENCE LIMITED,488282,1623,GB641407169
BEIS,Met Office,2024-02-02,11 SERVICES,PROGRAMMES,BAE SYSTEMS APPLIED INTELLIGENCE LIMITED,488282,7504,GB641407169
BEIS,Met Office,2024-02-02,11 SERVICES,PROGRAMMES,BAE SYSTEMS APPLIED INTELLIGENCE LIMITED,488282,12540,GB641407169
BEIS,Met Office,2024-02-02,11 SERVICES,PROGRAMMES,BAE SYSTEMS APPLIED INTELLIGENCE LIMITED,488282,14070,GB641407169
BEIS,Met Office,2024-02-02,11 SERVICES,PROGRAMMES,BAE SYSTEMS APPLIED INTELLIGENCE LIMITED,488282,16415,GB641407169
BEIS,Met Office,2024-02-02,11 SERVICES,PROGRAMMES,BAE SYSTEMS APPLIED INTELLIGENCE LIMITED,488282,17822,GB641407169
BEIS,Met Office,2024-02-02,11 SERVICES,PROGRAMMES,BAE SYSTEMS APPLIED INTELLIGENCE LIMITED,488282,17822,GB641407169
BEIS,Met Office,2024-02-02,11 SERVICES,PROGRAMMES,BAE SYSTEMS APPLIED INTELLIGENCE LIMITED,488282,17822,GB641407169
BEIS,Met Office,2024-02-02,11 SERVICES,PROGRAMMES,BAE SYSTEMS APPLIED INTELLIGENCE LIMITED,488282,17822,GB641407169
BEIS,Met Office,2024-02-02,11 SERVICES,PROGRAMMES,BAE SYSTEMS APPLIED INTELLIGENCE LIMITED,488282,22097,GB641407169
BEIS,Met Office,2024-02-02,11 SERVICES,PROGRAMMES,BAE SYSTEMS APPLIED INTELLIGENCE LIMITED,488282,22097,GB641407169
BEIS,Met Office,2024-02-01,11 SERVICES,PROGRAMMES,BAE SYSTEMS APPLIED INTELLIGENCE LIMITED,488208,63284.23,GB641407169
BEIS,Met Office,2024-02-28,11 SERVICES,PROGRAMMES,BCONNECTED PVT. LTD.,11405,2195.24,114420301
BEIS,Met Office,2024-02-28,11 SERVICES,PROGRAMMES,BCONNECTED PVT. LTD.,11420,22891.24,114420301
BEIS,Met Office,2024-02-01,06 ACCOMMODATION,PROGRAMMES,Biffa Waste Services Ltd,488120,50.76,537911627
BEIS,Met Office,2024-02-12,11 SERVICES,PROGRAMMES,BJSS LIMITED,488527,13437.5,613295452
BEIS,Met Office,2024-02-08,11 SERVICES,PROGRAMMES,BJSS LIMITED,488528,14400,613295452
BEIS,Met Office,2024-02-12,11 SERVICES,PROGRAMMES,BJSS LIMITED,488525,26192.5,613295452
BEIS,Met Office,2024-02-09,11 SERVICES,PROGRAMMES,BJSS LIMITED,488558,29375,613295452
BEIS,Met Office,2024-02-08,11 SERVICES,PROGRAMMES,BJSS LIMITED,488526,33612.5,613295452
BEIS,Met Office,2024-02-08,11 SERVICES,PROGRAMMES,BJSS LIMITED,488533,103747.5,613295452
BEIS,Met Office,2024-02-12,11 SERVICES,PROGRAMMES,BJSS LIMITED,488524,180068.75,613295452
BEIS,Met Office,2024-02-06,11 SERVICES,PROGRAMMES,CABINET OFFICE - COF LEAD ACCOUNT,488393,2820,-
BEIS,Met Office,2024-02-14,11 SERVICES,PROGRAMMES,CENTRE R�GIONAL AGRHYMET,488513,43000,-
BEIS,Met Office,2024-02-14,11 SERVICES,PROGRAMMES,Cgi It Uk Limited,488363,28588,232615194
BEIS,Met Office,2024-02-14,11 SERVICES,PROGRAMMES,Cgi It Uk Limited,488362,37693,232615194
BEIS,Met Office,2024-02-14,11 SERVICES,PROGRAMMES,Cgi It Uk Limited,488364,79239,232615194
BEIS,Met Office,2024-02-07,11 SERVICES,PROGRAMMES,FCDO,474622,-1089.12,888813560
BEIS,Met Office,2024-02-07,11 SERVICES,PROGRAMMES,FCDO,485824,-455.7,888813560
BEIS,Met Office,2024-02-07,11 SERVICES,PROGRAMMES,FCDO,480913,157.16,888813560
BEIS,Met Office,2024-02-07,11 SERVICES,PROGRAMMES,FCDO,480631,380.2,888813560
BEIS,Met Office,2024-02-07,11 SERVICES,PROGRAMMES,FCDO,481049,543.36,888813560
BEIS,Met Office,2024-02-07,11 SERVICES,PROGRAMMES,FCDO,488070,707.08,888813560
BEIS,Met Office,2024-02-07,11 SERVICES,PROGRAMMES,FCDO,484590,733.99,888813560
BEIS,Met Office,2024-02-07,11 SERVICES,PROGRAMMES,FCDO,486766,806.25,888813560
BEIS,Met Office,2024-02-07,11 SERVICES,PROGRAMMES,FCDO,474657,1219.03,888813560
BEIS,Met Office,2024-02-07,11 SERVICES,PROGRAMMES,FCDO,484983,1423.55,888813560
BEIS,Met Office,2024-02-07,11 SERVICES,PROGRAMMES,FCDO,482989,1552.32,888813560
BEIS,Met Office,2024-02-07,11 SERVICES,PROGRAMMES,FCDO,485823,2716.24,888813560
BEIS,Met Office,2024-02-07,11 SERVICES,PROGRAMMES,FCDO,487024,2732.3,888813560
BEIS,Met Office,2024-02-07,11 SERVICES,PROGRAMMES,FCDO,480235,2916.28,888813560
BEIS,Met Office,2024-02-07,11 SERVICES,PROGRAMMES,FCDO,483540,2921.08,888813560
BEIS,Met Office,2024-02-07,11 SERVICES,PROGRAMMES,FCDO,484166,3045.04,888813560
BEIS,Met Office,2024-02-07,11 SERVICES,PROGRAMMES,FCDO,486134,4700.49,888813560
BEIS,Met Office,2024-02-07,11 SERVICES,PROGRAMMES,FCDO,487507,13644.26,888813560
BEIS,Met Office,2024-02-07,11 SERVICES,PROGRAMMES,FCDO,472930,23861.2,888813560
BEIS,Met Office,2024-02-28,11 SERVICES,PROGRAMMES,GLOBAL ACTION PLAN,489193,27351,GB 625 994 009
BEIS,Met Office,2024-02-28,11 SERVICES,PROGRAMMES,HOGAN LOVELLS INTERNATIONAL LLP,489191,23400.09,GB123371543
BEIS,Met Office,2024-02-02,11 SERVICES,PROGRAMMES,Ibm United Kingdom Ltd,488271,13440.5,107328000
BEIS,Met Office,2024-02-21,11 SERVICES,PROGRAMMES,"K F LEWIN CONSULTING, LLC",11406,10909.55,-
BEIS,Met Office,2024-02-21,11 SERVICES,PROGRAMMES,"K F LEWIN CONSULTING, LLC",11414,58660.39,-
BEIS,Met Office,2024-02-12,11 SERVICES,PROGRAMMES,LAFOSSE ASSOCIATES,488613,21130.2,GB 360026537
BEIS,Met Office,2024-02-12,11 SERVICES,PROGRAMMES,LAFOSSE ASSOCIATES,488615,26220,GB 360026537
BEIS,Met Office,2024-02-28,11 SERVICES,PROGRAMMES,LUTRA CONSULTING,489220,9450,142463822
BEIS,Met Office,2024-02-06,11 SERVICES,PROGRAMMES,MADE TECH,488438,27015.18,938565184
BEIS,Met Office,2024-02-05,11 SERVICES,PROGRAMMES,MOORE STEPHENS INSIGHT LIMITED,487252,32250,GB128794671
BEIS,Met Office,2024-02-12,06 ACCOMMODATION,PROGRAMMES,MORAY COUNCIL,488484,2099.74,663755506
BEIS,Met Office,2024-02-21,11 SERVICES,PROGRAMMES,NORWEGIAN REFUGEE COUNCIL,488869,33276.6,-
BEIS,Met Office,2024-02-08,13 MISCELLANEOUS,PROGRAMMES,Parcelforce,488555,92.1,GB 243 1700 02
BEIS,Met Office,2024-02-21,11 SERVICES,PROGRAMMES,RAINMAKER SOLUTIONS LTD,488658,264.8,-
BEIS,Met Office,2024-02-21,11 SERVICES,PROGRAMMES,RAINMAKER SOLUTIONS LTD,488946,5066.2,-
BEIS,Met Office,2024-02-21,11 SERVICES,PROGRAMMES,RAINMAKER SOLUTIONS LTD,488658,14933.8,-
BEIS,Met Office,2024-02-21,11 SERVICES,PROGRAMMES,RAINMAKER SOLUTIONS LTD,488946,20000,-
BEIS,Met Office,2024-02-13,11 SERVICES,PROGRAMMES,Red Cross Red Crescent Climate Centre,488487,-41000,N/A
BEIS,Met Office,2024-02-13,11 SERVICES,PROGRAMMES,Red Cross Red Crescent Climate Centre,487999,41000,N/A
BEIS,Met Office,2024-02-22,11 SERVICES,PROGRAMMES,Red Oak Consulting LLP,488991,25750,807766990
BEIS,Met Office,2024-02-07,11 SERVICES,PROGRAMMES,RESURGENCE URBAN RESILIENCE TRUST,488394,87765.99,259524184
BEIS,Met Office,2024-02-08,11 SERVICES,PROGRAMMES,ROWE IT LTD,488537,1520.63,924964394
BEIS,Met Office,2024-02-08,11 SERVICES,PROGRAMMES,ROWE IT LTD,488537,4561.9,924964394
BEIS,Met Office,2024-02-12,11 SERVICES,PROGRAMMES,ROWE IT LTD,488541,14014.03,924964394
BEIS,Met Office,2024-02-08,11 SERVICES,PROGRAMMES,ROWE IT LTD,488537,17487.29,924964394
BEIS,Met Office,2024-02-08,11 SERVICES,PROGRAMMES,ROWE IT LTD,488537,21288.87,924964394
BEIS,Met Office,2024-02-08,11 SERVICES,PROGRAMMES,ROWE IT LTD,488537,53222.18,924964394
BEIS,Met Office,2024-02-08,11 SERVICES,PROGRAMMES,ROWE IT LTD,488537,63866.61,924964394
BEIS,Met Office,2024-02-09,11 SERVICES,PROGRAMMES,ROWE IT LTD,488548,115385,924964394
BEIS,Met Office,2024-02-02,11 SERVICES,PROGRAMMES,RSM,488207,5250,890965570
BEIS,Met Office,2024-02-27,11 SERVICES,PROGRAMMES,SCIENCE & TECHNOLOGY FACILITIES COUNCIL,489161,80000,287461957
BEIS,Met Office,2024-02-02,06 ACCOMMODATION,PROGRAMMES,Scottish Police Authority,488316,1700.31,158533589
BEIS,Met Office,2024-02-09,13 MISCELLANEOUS,PROGRAMMES,SPRINGER NATURE LIMITED,487879,8490,199440621
BEIS,Met Office,2024-02-27,11 SERVICES,PROGRAMMES,UK ATOMIC ENERGY AUTHORITY,485245,-115210.72,GB570101391
BEIS,Met Office,2024-02-27,11 SERVICES,PROGRAMMES,UK ATOMIC ENERGY AUTHORITY,485247,-53834.41,GB570101391
BEIS,Met Office,2024-02-27,11 SERVICES,PROGRAMMES,UK ATOMIC ENERGY AUTHORITY,486018,-13981.94,GB570101391
BEIS,Met Office,2024-02-27,11 SERVICES,PROGRAMMES,UK ATOMIC ENERGY AUTHORITY,478184,5000,GB570101391
BEIS,Met Office,2024-02-27,11 SERVICES,PROGRAMMES,UK ATOMIC ENERGY AUTHORITY,484975,6703.63,GB570101391
BEIS,Met Office,2024-02-27,11 SERVICES,PROGRAMMES,UK ATOMIC ENERGY AUTHORITY,484974,6961.33,GB570101391
BEIS,Met Office,2024-02-27,11 SERVICES,PROGRAMMES,UK ATOMIC ENERGY AUTHORITY,484978,12411.93,GB570101391
BEIS,Met Office,2024-02-27,11 SERVICES,PROGRAMMES,UK ATOMIC ENERGY AUTHORITY,484979,13458.6,GB570101391
BEIS,Met Office,2024-02-27,11 SERVICES,PROGRAMMES,UK ATOMIC ENERGY AUTHORITY,484980,13981.94,GB570101391
BEIS,Met Office,2024-02-27,11 SERVICES,PROGRAMMES,UK ATOMIC ENERGY AUTHORITY,484981,13981.94,GB570101391
BEIS,Met Office,2024-02-27,11 SERVICES,PROGRAMMES,UK ATOMIC ENERGY AUTHORITY,484976,22441.65,GB570101391
BEIS,Met Office,2024-02-27,11 SERVICES,PROGRAMMES,UK ATOMIC ENERGY AUTHORITY,487486,38366.4,GB570101391
BEIS,Met Office,2024-02-27,11 SERVICES,PROGRAMMES,UK ATOMIC ENERGY AUTHORITY,484977,51540.08,GB570101391
BEIS,Met Office,2024-02-09,11 SERVICES,PROGRAMMES,UK CENTRE FOR ECOLOGY & HYDROLOGY (UKCEH),488536,10000,336940192
BEIS,Met Office,2024-02-09,11 SERVICES,PROGRAMMES,UK CENTRE FOR ECOLOGY & HYDROLOGY (UKCEH),488535,37000,336940192
BEIS,Met Office,2024-02-01,11 SERVICES,PROGRAMMES,UK CENTRE FOR ECOLOGY & HYDROLOGY (UKCEH),486916,38981,336940192
BEIS,Met Office,2024-02-01,11 SERVICES,PROGRAMMES,University Of Exeter,484881,417,142047795
BEIS,Met Office,2024-02-01,11 SERVICES,PROGRAMMES,University Of Exeter,484880,1000,142047795
BEIS,Met Office,2024-02-01,11 SERVICES,PROGRAMMES,University Of Exeter,488094,1000,142047795
BEIS,Met Office,2024-02-20,DEFERRED INCOME,PROGRAMMES,University Of Leeds,488391,-32183,613451470
BEIS,Met Office,2024-02-20,11 SERVICES,PROGRAMMES,University Of Leeds,488390,-24289,613451470
BEIS,Met Office,2024-02-20,DEFERRED INCOME,PROGRAMMES,University Of Leeds,488387,-9389,613451470
BEIS,Met Office,2024-02-20,DEFERRED INCOME,PROGRAMMES,University Of Leeds,488389,-7266,613451470
BEIS,Met Office,2024-02-20,DEFERRED INCOME,PROGRAMMES,University Of Leeds,488388,-5826,613451470
BEIS,Met Office,2024-02-20,11 SERVICES,PROGRAMMES,University Of Leeds,488726,12500,613451470
BEIS,Met Office,2024-02-20,11 SERVICES,PROGRAMMES,University Of Leeds,488921,130472,613451470
BEIS,Met Office,2024-02-08,11 SERVICES,PROGRAMMES,University Of Reading,488496,36578.33,200012659
BEIS,Met Office,2024-02-21,11 SERVICES,PROGRAMMES,WORLD METEOROLOGICAL ORGANIZATION,488795,75000,-
BEIS,Met Office,2024-02-15,13 MISCELLANEOUS,SCIENCE,AB MULTIMEDIA LTD,488486,65,849333502
BEIS,Met Office,2024-02-07,11 SERVICES,SCIENCE,ABB INC,11394,23617.47,-
BEIS,Met Office,2024-02-02,11 SERVICES,SCIENCE,Esri (Uk) Ltd,488313,10363.4,787430791
BEIS,Met Office,2024-02-08,11 SERVICES,SCIENCE,University Of Bristol,488421,-50000,991261800
BEIS,Met Office,2024-02-08,11 SERVICES,SCIENCE,University Of Bristol,488386,12500,991261800
BEIS,Met Office,2024-02-08,11 SERVICES,SCIENCE,University Of Bristol,487832,50000,991261800
BEIS,Met Office,2024-02-12,13 MISCELLANEOUS,SCIENCE,University Of Hertfordshire,488603,1000,539959672
BEIS,Met Office,2024-02-02,11 SERVICES,SCIENCE,University Of Leeds,488285,83333.25,613451470
BEIS,Met Office,2024-02-06,11 SERVICES,SERVICES,ADAM PHONES LTD,488428,155,538877093
BEIS,Met Office,2024-02-02,11 SERVICES,SERVICES,ALPHABET (GB) LTD,460280,-1631.3,572417244
BEIS,Met Office,2024-02-02,11 SERVICES,SERVICES,ALPHABET (GB) LTD,488383,-599.77,572417244
BEIS,Met Office,2024-02-02,11 SERVICES,SERVICES,ALPHABET (GB) LTD,486742,-492.61,572417244
BEIS,Met Office,2024-02-02,11 SERVICES,SERVICES,ALPHABET (GB) LTD,424004,-123.35,572417244
BEIS,Met Office,2024-02-02,11 SERVICES,SERVICES,ALPHABET (GB) LTD,486730,-122.9,572417244
BEIS,Met Office,2024-02-02,11 SERVICES,SERVICES,ALPHABET (GB) LTD,486746,36.12,572417244
BEIS,Met Office,2024-02-02,11 SERVICES,SERVICES,ALPHABET (GB) LTD,486744,40,572417244
BEIS,Met Office,2024-02-02,11 SERVICES,SERVICES,ALPHABET (GB) LTD,486737,126.84,572417244
BEIS,Met Office,2024-02-02,11 SERVICES,SERVICES,ALPHABET (GB) LTD,486745,133.06,572417244
BEIS,Met Office,2024-02-02,11 SERVICES,SERVICES,ALPHABET (GB) LTD,486740,225.19,572417244
BEIS,Met Office,2024-02-02,11 SERVICES,SERVICES,ALPHABET (GB) LTD,486741,246.31,572417244
BEIS,Met Office,2024-02-02,11 SERVICES,SERVICES,ALPHABET (GB) LTD,486743,246.31,572417244
BEIS,Met Office,2024-02-02,11 SERVICES,SERVICES,ALPHABET (GB) LTD,431705,279,572417244
BEIS,Met Office,2024-02-02,11 SERVICES,SERVICES,ALPHABET (GB) LTD,486747,567.07,572417244
BEIS,Met Office,2024-02-02,11 SERVICES,SERVICES,ALPHABET (GB) LTD,424333,1000,572417244
BEIS,Met Office,2024-02-09,11 SERVICES,SERVICES,APPLIED SATELLITE TECHNOLOGY SYSTEMS LTD,488519,33.42,720108683
BEIS,Met Office,2024-02-08,11 SERVICES,SERVICES,APPLIED SATELLITE TECHNOLOGY SYSTEMS LTD,488518,66.83,720108683
BEIS,Met Office,2024-02-08,11 SERVICES,SERVICES,APPLIED SATELLITE TECHNOLOGY SYSTEMS LTD,488520,148.87,720108683
BEIS,Met Office,2024-02-21,03 STAFF COSTS T&S,SERVICES,AVIS BUDGET PAYLESS,25584,918.65,-
BEIS,Met Office,2024-02-26,11 SERVICES,SERVICES,BENTLEY TELECOM LTD (was Bentley Walker),489098,-87.5,107995930
BEIS,Met Office,2024-02-26,11 SERVICES,SERVICES,BENTLEY TELECOM LTD (was Bentley Walker),489097,-28.13,107995930
BEIS,Met Office,2024-02-26,11 SERVICES,SERVICES,BENTLEY TELECOM LTD (was Bentley Walker),489099,327.42,107995930
BEIS,Met Office,2024-02-06,11 SERVICES,SERVICES,BENTLEY TELECOM LTD (was Bentley Walker),488436,525,107995930
BEIS,Met Office,2024-02-27,11 SERVICES,SERVICES,Boc Ltd,487952,-1095,226556555
BEIS,Met Office,2024-02-27,11 SERVICES,SERVICES,Boc Ltd,489096,-135.2,226556555
BEIS,Met Office,2024-02-27,11 SERVICES,SERVICES,Boc Ltd,488300,25194.87,226556555
BEIS,Met Office,2024-02-08,11 SERVICES,SERVICES,CABINET OFFICE - COF LEAD ACCOUNT,488435,7393,-
BEIS,Met Office,2024-02-07,STOCK,SERVICES,Campbell Scientific Ltd,488422,0,428453933
BEIS,Met Office,2024-02-07,STOCK,SERVICES,Campbell Scientific Ltd,488422,0,428453933
BEIS,Met Office,2024-02-07,STOCK,SERVICES,Campbell Scientific Ltd,488422,0,428453933
BEIS,Met Office,2024-02-07,STOCK,SERVICES,Campbell Scientific Ltd,488422,0,428453933
BEIS,Met Office,2024-02-07,11 SERVICES,SERVICES,Campbell Scientific Ltd,488422,60,428453933
BEIS,Met Office,2024-02-07,TRADE CREDITORS,SERVICES,Campbell Scientific Ltd,488422,675,428453933
BEIS,Met Office,2024-02-07,TRADE CREDITORS,SERVICES,Campbell Scientific Ltd,488422,839.7,428453933
BEIS,Met Office,2024-02-28,07 EQUIPMENT,SERVICES,Campbell Scientific Ltd,489145,900,428453933
BEIS,Met Office,2024-02-28,07 EQUIPMENT,SERVICES,Campbell Scientific Ltd,489145,2527.2,428453933
BEIS,Met Office,2024-02-07,TRADE CREDITORS,SERVICES,Campbell Scientific Ltd,488422,5467.5,428453933
BEIS,Met Office,2024-02-07,TRADE CREDITORS,SERVICES,Campbell Scientific Ltd,488422,7110,428453933
BEIS,Met Office,2024-02-07,11 SERVICES,SERVICES,Campbell Scientific Ltd,488328,20600,428453933
BEIS,Met Office,2024-02-02,03 STAFF COSTS T&S,SERVICES,CHARLIE'S TRAVEL LTD,488299,52.5,783848277
BEIS,Met Office,2024-02-27,03 STAFF COSTS T&S,SERVICES,CHARLIE'S TRAVEL LTD,489181,52.5,783848277
BEIS,Met Office,2024-02-02,03 STAFF COSTS T&S,SERVICES,CHARLIE'S TRAVEL LTD,488299,718.37,783848277
BEIS,Met Office,2024-02-01,08 SOFTWARE LICENCES,SERVICES,CIVICA UK LIMITED,488210,11381.25,391171065
BEIS,Met Office,2024-02-14,11 SERVICES,SERVICES,CLOUDREACH EUROPE LIMITED,488788,7300,978187168
BEIS,Met Office,2024-02-14,STOCK,SERVICES,COMMUNICATIONS & POWER IND. EUROPE LTD,11396,0,664103850
BEIS,Met Office,2024-02-14,STOCK,SERVICES,COMMUNICATIONS & POWER IND. EUROPE LTD,11396,0,664103850
BEIS,Met Office,2024-02-14,STOCK,SERVICES,COMMUNICATIONS & POWER IND. EUROPE LTD,11396,0,664103850
BEIS,Met Office,2024-02-14,STOCK,SERVICES,COMMUNICATIONS & POWER IND. EUROPE LTD,11396,0,664103850
BEIS,Met Office,2024-02-14,TRADE CREDITORS,SERVICES,COMMUNICATIONS & POWER IND. EUROPE LTD,11396,321.2,664103850
BEIS,Met Office,2024-02-14,TRADE CREDITORS,SERVICES,COMMUNICATIONS & POWER IND. EUROPE LTD,11396,1097.43,664103850
BEIS,Met Office,2024-02-14,TRADE CREDITORS,SERVICES,COMMUNICATIONS & POWER IND. EUROPE LTD,11396,1822.48,664103850
BEIS,Met Office,2024-02-14,TRADE CREDITORS,SERVICES,COMMUNICATIONS & POWER IND. EUROPE LTD,11396,1927.19,664103850
BEIS,Met Office,2024-02-21,11 SERVICES,SERVICES,CONNEXITY UK LTD,440653,-14636.32,853614227
BEIS,Met Office,2024-02-21,11 SERVICES,SERVICES,CONNEXITY UK LTD,489031,14636.32,853614227
BEIS,Met Office,2024-02-23,03 STAFF COSTS T&S,SERVICES,DBS FINANCE RECEIPTS CTS,489019,-9899,888805068
BEIS,Met Office,2024-02-23,03 STAFF COSTS T&S,SERVICES,DBS FINANCE RECEIPTS CTS,489020,8293,888805068
BEIS,Met Office,2024-02-23,03 STAFF COSTS T&S,SERVICES,DBS FINANCE RECEIPTS CTS,488168,9899,888805068
BEIS,Met Office,2024-02-28,13 MISCELLANEOUS,SERVICES,DEMSTAR BUSINESS SOLUTIONS LTD,25599,83.38,10156145J
BEIS,Met Office,2024-02-14,10 EQUIPMENT MAINTENANCE,SERVICES,DEUTSCHE WINDGUARD WIND TUNNEL SERVICES GMBH,25617,17.06,DE225152482
BEIS,Met Office,2024-02-14,10 EQUIPMENT MAINTENANCE,SERVICES,DEUTSCHE WINDGUARD WIND TUNNEL SERVICES GMBH,25617,42.64,DE225152482
BEIS,Met Office,2024-02-14,10 EQUIPMENT MAINTENANCE,SERVICES,DEUTSCHE WINDGUARD WIND TUNNEL SERVICES GMBH,25618,1151.25,DE225152482
BEIS,Met Office,2024-02-14,10 EQUIPMENT MAINTENANCE,SERVICES,DEUTSCHE WINDGUARD WIND TUNNEL SERVICES GMBH,25617,3453.77,DE225152482
BEIS,Met Office,2024-02-27,11 SERVICES,SERVICES,DOT SOFTWARE LTD,489107,3912,701022805
BEIS,Met Office,2024-02-19,STOCK,SERVICES,EQUINOX INSTRUMENTS LTD,488802,0,865954274
BEIS,Met Office,2024-02-19,STOCK,SERVICES,EQUINOX INSTRUMENTS LTD,488802,0,865954274
BEIS,Met Office,2024-02-26,STOCK,SERVICES,EQUINOX INSTRUMENTS LTD,488998,0,865954274
BEIS,Met Office,2024-02-26,11 SERVICES,SERVICES,EQUINOX INSTRUMENTS LTD,488998,30,865954274
BEIS,Met Office,2024-02-19,11 SERVICES,SERVICES,EQUINOX INSTRUMENTS LTD,488802,80,865954274
BEIS,Met Office,2024-02-19,TRADE CREDITORS,SERVICES,EQUINOX INSTRUMENTS LTD,488802,650,865954274
BEIS,Met Office,2024-02-26,TRADE CREDITORS,SERVICES,EQUINOX INSTRUMENTS LTD,488998,12726,865954274
BEIS,Met Office,2024-02-19,TRADE CREDITORS,SERVICES,EQUINOX INSTRUMENTS LTD,488802,21055,865954274
BEIS,Met Office,2024-02-28,12 INTERNATIONAL,SERVICES,EURO-ARGO ERIC,25596,25583.41,723/2009
BEIS,Met Office,2024-02-12,03 STAFF COSTS T&S,SERVICES,FALKLAND ISLAND COMPANY LTD,488532,281.1,N/A
BEIS,Met Office,2024-02-12,03 STAFF COSTS T&S,SERVICES,FALKLAND ISLAND COMPANY LTD,488532,418.9,N/A
BEIS,Met Office,2024-02-12,03 STAFF COSTS T&S,SERVICES,FALKLAND ISLAND COMPANY LTD,488530,700,N/A
BEIS,Met Office,2024-02-12,03 STAFF COSTS T&S,SERVICES,FALKLAND ISLAND COMPANY LTD,488531,700,N/A
BEIS,Met Office,2024-02-09,13 MISCELLANEOUS,SERVICES,FLUKE UK LTD,488542,20,625938805
BEIS,Met Office,2024-02-09,10 EQUIPMENT MAINTENANCE,SERVICES,FLUKE UK LTD,488542,4156,625938805
BEIS,Met Office,2024-02-05,11 SERVICES,SERVICES,FLYFORM LTD,488258,11926.35,237333808
BEIS,Met Office,2024-02-15,11 SERVICES,SERVICES,GAMMA TELECOM LTD,488695,4699.22,823820344
BEIS,Met Office,2024-02-06,STOCK,SERVICES,GH ZEAL LTD,485616,0,648929087
BEIS,Met Office,2024-02-06,11 SERVICES,SERVICES,GH ZEAL LTD,485616,17.5,648929087
BEIS,Met Office,2024-02-06,TRADE CREDITORS,SERVICES,GH ZEAL LTD,485616,5959,648929087
BEIS,Met Office,2024-02-29,07 EQUIPMENT,SERVICES,Gill Instruments Ltd,489162,1952,522056678
BEIS,Met Office,2024-02-22,11 SERVICES,SERVICES,GQA QUALIFICATIONS LTD,489037,-360,-
BEIS,Met Office,2024-02-13,11 SERVICES,SERVICES,GQA QUALIFICATIONS LTD,488696,25,-
BEIS,Met Office,2024-02-28,11 SERVICES,SERVICES,GQA QUALIFICATIONS LTD,486755,75,-
BEIS,Met Office,2024-02-22,11 SERVICES,SERVICES,GQA QUALIFICATIONS LTD,473218,360,-
BEIS,Met Office,2024-02-26,11 SERVICES,SERVICES,GROUND CONTROL UK TECHNOLOGIES LTD,489030,71,GB277698137
BEIS,Met Office,2024-02-26,11 SERVICES,SERVICES,GROUND CONTROL UK TECHNOLOGIES LTD,489030,228,GB277698137
BEIS,Met Office,2024-02-26,11 SERVICES,SERVICES,GROUND CONTROL UK TECHNOLOGIES LTD,489030,690.06,GB277698137
BEIS,Met Office,2024-02-26,11 SERVICES,SERVICES,GROUND CONTROL UK TECHNOLOGIES LTD,489030,1258.08,GB277698137
BEIS,Met Office,2024-02-26,11 SERVICES,SERVICES,GROUND CONTROL UK TECHNOLOGIES LTD,489030,1380.56,GB277698137
BEIS,Met Office,2024-02-26,11 SERVICES,SERVICES,GROUND CONTROL UK TECHNOLOGIES LTD,489030,2052.26,GB277698137
BEIS,Met Office,2024-02-26,11 SERVICES,SERVICES,GROUND CONTROL UK TECHNOLOGIES LTD,489030,3806.14,GB277698137
BEIS,Met Office,2024-02-05,STOCK,SERVICES,HEASON TECHNOLOGY LTD,488154,0,945605411
BEIS,Met Office,2024-02-05,11 SERVICES,SERVICES,HEASON TECHNOLOGY LTD,488154,35,945605411
BEIS,Met Office,2024-02-05,TRADE CREDITORS,SERVICES,HEASON TECHNOLOGY LTD,488154,3780,945605411
BEIS,Met Office,2024-02-19,07 EQUIPMENT,SERVICES,HYDROSPHERE UK LIMITED,488834,20,641275549
BEIS,Met Office,2024-02-19,07 EQUIPMENT,SERVICES,HYDROSPHERE UK LIMITED,488834,7452,641275549
BEIS,Met Office,2024-02-06,13 MISCELLANEOUS,SERVICES,IMAGETEK SYSTEMS LTD,488381,629.2,GB586331424
BEIS,Met Office,2024-02-05,11 SERVICES,SERVICES,INMARSAT SOLUTIONS (CANADA) INC,488373,43.27,766144223
BEIS,Met Office,2024-02-05,11 SERVICES,SERVICES,INMARSAT SOLUTIONS (CANADA) INC,488374,43.27,766144223
BEIS,Met Office,2024-02-05,11 SERVICES,SERVICES,INMARSAT SOLUTIONS (CANADA) INC,488375,86.54,766144223
BEIS,Met Office,2024-02-09,07 EQUIPMENT,SERVICES,J & J NEGUS LTD,488604,3195,GB273543159
BEIS,Met Office,2024-02-21,07 EQUIPMENT,SERVICES,LEMO (UK) LTD,488910,17.5,193269240
BEIS,Met Office,2024-02-21,07 EQUIPMENT,SERVICES,LEMO (UK) LTD,488910,996.4,193269240
BEIS,Met Office,2024-02-29,07 EQUIPMENT,SERVICES,MACARTNEY UK LTD,489295,20,GB734931229
BEIS,Met Office,2024-02-29,07 EQUIPMENT,SERVICES,MACARTNEY UK LTD,489295,50,GB734931229
BEIS,Met Office,2024-02-29,07 EQUIPMENT,SERVICES,MACARTNEY UK LTD,489295,90.3,GB734931229
BEIS,Met Office,2024-02-29,07 EQUIPMENT,SERVICES,MACARTNEY UK LTD,489295,1916.75,GB734931229
BEIS,Met Office,2024-02-06,11 SERVICES,SERVICES,MADE TECH,488437,312726.79,938565184
BEIS,Met Office,2024-02-19,08 SOFTWARE LICENCES,SERVICES,MERKLE ONE,488904,8022.92,GB478022835
BEIS,Met Office,2024-02-27,13 MISCELLANEOUS,SERVICES,MICHELL INSTRUMENTS LTD,489101,0.01,214757561
BEIS,Met Office,2024-02-27,13 MISCELLANEOUS,SERVICES,MICHELL INSTRUMENTS LTD,489101,99.99,214757561
BEIS,Met Office,2024-02-27,10 EQUIPMENT MAINTENANCE,SERVICES,MICHELL INSTRUMENTS LTD,489101,110,214757561
BEIS,Met Office,2024-02-27,10 EQUIPMENT MAINTENANCE,SERVICES,MICHELL INSTRUMENTS LTD,489101,3388,214757561
BEIS,Met Office,2024-02-06,11 SERVICES,SERVICES,MILEXIA UK LTD,487104,20,537664613
BEIS,Met Office,2024-02-06,10 EQUIPMENT MAINTENANCE,SERVICES,MILEXIA UK LTD,487104,570,537664613
BEIS,Met Office,2024-02-06,10 EQUIPMENT MAINTENANCE,SERVICES,MILEXIA UK LTD,487104,4943.19,537664613
BEIS,Met Office,2024-02-12,06 ACCOMMODATION,SERVICES,NORTHWOOD OFFICERS� MESS,488647,683.55,223 6434 83
BEIS,Met Office,2024-02-06,10 EQUIPMENT MAINTENANCE,SERVICES,Npl Management Ltd,488433,2689,207523388
BEIS,Met Office,2024-02-14,11 SERVICES,SERVICES,NSSL GLOBAL LTD,11383,54.94,725151948
BEIS,Met Office,2024-02-14,11 SERVICES,SERVICES,NSSL GLOBAL LTD,11381,70.64,725151948
BEIS,Met Office,2024-02-13,07 EQUIPMENT,SERVICES,PLANET OCEAN LTD,488660,12455,834477212
BEIS,Met Office,2024-02-16,11 SERVICES,SERVICES,PUBLIC HEALTH ENGLAND,488851,-370,155579377
BEIS,Met Office,2024-02-16,11 SERVICES,SERVICES,PUBLIC HEALTH ENGLAND,472239,370,155579377
BEIS,Met Office,2024-02-16,11 SERVICES,SERVICES,PUBLIC HEALTH ENGLAND,488850,370,GB 888 851 648
BEIS,Met Office,2024-02-14,11 SERVICES,SERVICES,QA LTD,488767,1155,864455303
BEIS,Met Office,2024-02-14,11 SERVICES,SERVICES,QA LTD,488770,1155,864455303
BEIS,Met Office,2024-02-14,11 SERVICES,SERVICES,QA LTD,488772,1155,864455303
BEIS,Met Office,2024-02-16,11 SERVICES,SERVICES,QA LTD,488865,1155,864455303
BEIS,Met Office,2024-02-28,07 EQUIPMENT,SERVICES,SB PRECISION ENGINEERING LTD,489259,-147.5,137923104
BEIS,Met Office,2024-02-28,07 EQUIPMENT,SERVICES,SB PRECISION ENGINEERING LTD,440817,147.5,137923104
BEIS,Met Office,2024-02-14,11 SERVICES,SERVICES,SKYGUARD LTD T/A PEOPLESAFE,488721,782.01,285808854
BEIS,Met Office,2024-02-09,11 SERVICES,SERVICES,SOFTWIRE TECHNOLOGY LIMITED,488523,4200,752 1253 57
BEIS,Met Office,2024-02-22,PLANT AND EQUIPMENT,SERVICES,SONARDYNE INTERNATIONAL LIMITED,488997,40880,GB 591 6950 04
BEIS,Met Office,2024-02-22,13 MISCELLANEOUS,SERVICES,SPRINGER NATURE LIMITED,489047,-559,199440621
BEIS,Met Office,2024-02-22,13 MISCELLANEOUS,SERVICES,SPRINGER NATURE LIMITED,430061,559,199440621
BEIS,Met Office,2024-02-27,07 EQUIPMENT,SERVICES,ST CROSS ELECTRONICS,489184,20,330158101
BEIS,Met Office,2024-02-27,07 EQUIPMENT,SERVICES,ST CROSS ELECTRONICS,489184,178.4,330158101
BEIS,Met Office,2024-02-16,03 STAFF COSTS T&S,SERVICES,STORAGE FACTORY,488866,185,130 5237 12
BEIS,Met Office,2024-02-22,13 MISCELLANEOUS,SERVICES,SWETS INFORMATION SERVICES LTD,489058,324.1,749957067
BEIS,Met Office,2024-02-23,10 EQUIPMENT MAINTENANCE,SERVICES,TRESCAL,482936,244,GB 115 1045 67
BEIS,Met Office,2024-02-05,10 EQUIPMENT MAINTENANCE,SERVICES,TRESCAL,483700,316.1,GB 115 1045 67
BEIS,Met Office,2024-02-16,11 SERVICES,SERVICES,Trinity House,488863,1587,243120414
BEIS,Met Office,2024-02-13,11 SERVICES,SERVICES,UK TELEMATICS LIMITED,488699,126.5,GB763051643
BEIS,Met Office,2024-02-19,11 SERVICES,SERVICES,UK TELEMATICS LIMITED,488906,335.52,GB763051643
BEIS,Met Office,2024-02-21,STOCK,SERVICES,VAISALA LTD,25583,0,336100011
BEIS,Met Office,2024-02-21,TRADE CREDITORS,SERVICES,VAISALA LTD,25583,8244.71,336100011
BEIS,Met Office,2024-02-07,STOCK,SERVICES,Vaisala Oyj,25557,0,FI01244162
BEIS,Met Office,2024-02-07,11 SERVICES,SERVICES,Vaisala Oyj,25557,1807.65,FI01244162
BEIS,Met Office,2024-02-07,TRADE CREDITORS,SERVICES,Vaisala Oyj,25557,81705.59,FI01244162
BEIS,Met Office,2024-02-27,11 SERVICES,SERVICES,VOLKSWAGEN GROUP LEASING,489130,1,BG745963883
BEIS,Met Office,2024-02-27,11 SERVICES,SERVICES,VOLKSWAGEN GROUP LEASING,489131,1,BG745963883
BEIS,Met Office,2024-02-27,11 SERVICES,SERVICES,VOLKSWAGEN GROUP LEASING,489132,1,BG745963883
BEIS,Met Office,2024-02-27,11 SERVICES,SERVICES,VOLKSWAGEN GROUP LEASING,489133,1,BG745963883
BEIS,Met Office,2024-02-27,11 SERVICES,SERVICES,VOLKSWAGEN GROUP LEASING,489134,1,BG745963883
BEIS,Met Office,2024-02-27,11 SERVICES,SERVICES,VOLKSWAGEN GROUP LEASING,489135,1,BG745963883
BEIS,Met Office,2024-02-27,11 SERVICES,SERVICES,VOLKSWAGEN GROUP LEASING,489136,1,BG745963883
BEIS,Met Office,2024-02-27,11 SERVICES,SERVICES,VOLKSWAGEN GROUP LEASING,489137,1,BG745963883
BEIS,Met Office,2024-02-27,11 SERVICES,SERVICES,VOLKSWAGEN GROUP LEASING,489138,1,BG745963883
BEIS,Met Office,2024-02-27,11 SERVICES,SERVICES,VOLKSWAGEN GROUP LEASING,489139,1,BG745963883
BEIS,Met Office,2024-02-27,11 SERVICES,SERVICES,VOLKSWAGEN GROUP LEASING,489140,65.08,BG745963883
BEIS,Met Office,2024-02-27,11 SERVICES,SERVICES,VOLKSWAGEN GROUP LEASING,489140,69.69,BG745963883
BEIS,Met Office,2024-02-27,11 SERVICES,SERVICES,VOLKSWAGEN GROUP LEASING,489135,130.05,BG745963883
BEIS,Met Office,2024-02-27,11 SERVICES,SERVICES,VOLKSWAGEN GROUP LEASING,489139,133.61,BG745963883
BEIS,Met Office,2024-02-27,11 SERVICES,SERVICES,VOLKSWAGEN GROUP LEASING,489141,160.02,BG745963883
BEIS,Met Office,2024-02-27,11 SERVICES,SERVICES,VOLKSWAGEN GROUP LEASING,489132,194.57,BG745963883
BEIS,Met Office,2024-02-27,11 SERVICES,SERVICES,VOLKSWAGEN GROUP LEASING,489138,198.82,BG745963883
BEIS,Met Office,2024-02-27,11 SERVICES,SERVICES,VOLKSWAGEN GROUP LEASING,489142,213.27,BG745963883
BEIS,Met Office,2024-02-27,11 SERVICES,SERVICES,VOLKSWAGEN GROUP LEASING,489136,229.85,BG745963883
BEIS,Met Office,2024-02-27,11 SERVICES,SERVICES,VOLKSWAGEN GROUP LEASING,489130,247.12,BG745963883
BEIS,Met Office,2024-02-27,11 SERVICES,SERVICES,VOLKSWAGEN GROUP LEASING,489134,259.26,BG745963883
BEIS,Met Office,2024-02-27,11 SERVICES,SERVICES,VOLKSWAGEN GROUP LEASING,489133,259.65,BG745963883
BEIS,Met Office,2024-02-27,11 SERVICES,SERVICES,VOLKSWAGEN GROUP LEASING,489137,288.9,BG745963883
BEIS,Met Office,2024-02-27,11 SERVICES,SERVICES,VOLKSWAGEN GROUP LEASING,489131,289.06,BG745963883
BEIS,Met Office,2024-02-22,STOCK,SERVICES,VWR INTERNATIONAL LTD,489022,0,823853225
BEIS,Met Office,2024-02-22,11 SERVICES,SERVICES,VWR INTERNATIONAL LTD,489022,25,823853225
BEIS,Met Office,2024-02-22,TRADE CREDITORS,SERVICES,VWR INTERNATIONAL LTD,489022,734,823853225
BEIS,Met Office,2024-02-20,07 EQUIPMENT,SERVICES,WINDSPEED LIMITED,488949,708.3,800755256
BEIS,Met Office,2024-02-07,12 INTERNATIONAL,SERVICES,WORLD METEOROLOGICAL ORGANIZATION,25605,8527.8,-
BEIS,Met Office,2024-02-06,11 SERVICES,TECHNOLOGY AND CIO,AKAMAI TECHNOLOGIES LTD,488424,4937.28,745091237
BEIS,Met Office,2024-02-06,11 SERVICES,TECHNOLOGY AND CIO,AKAMAI TECHNOLOGIES LTD,488424,25920.75,745091237
BEIS,Met Office,2024-02-07,11 SERVICES,TECHNOLOGY AND CIO,AMAZON WEB SERVICES EMEA SARL,11369,-4440.19,GB 283644382
BEIS,Met Office,2024-02-07,11 SERVICES,TECHNOLOGY AND CIO,AMAZON WEB SERVICES EMEA SARL,11339,-4413.22,GB 283644382
BEIS,Met Office,2024-02-07,11 SERVICES,TECHNOLOGY AND CIO,AMAZON WEB SERVICES EMEA SARL,11319,303180.21,GB 283644382
BEIS,Met Office,2024-02-07,11 SERVICES,TECHNOLOGY AND CIO,AMAZON WEB SERVICES EMEA SARL,11364,308312.44,GB 283644382
BEIS,Met Office,2024-02-16,11 SERVICES,TECHNOLOGY AND CIO,BAE SYSTEMS APPLIED INTELLIGENCE LIMITED,488783,2164,GB641407169
BEIS,Met Office,2024-02-16,11 SERVICES,TECHNOLOGY AND CIO,BAE SYSTEMS APPLIED INTELLIGENCE LIMITED,488781,8100,GB641407169
BEIS,Met Office,2024-02-16,11 SERVICES,TECHNOLOGY AND CIO,BAE SYSTEMS APPLIED INTELLIGENCE LIMITED,488780,8550,GB641407169
BEIS,Met Office,2024-02-16,11 SERVICES,TECHNOLOGY AND CIO,BAE SYSTEMS APPLIED INTELLIGENCE LIMITED,488775,8656,GB641407169
BEIS,Met Office,2024-02-16,11 SERVICES,TECHNOLOGY AND CIO,BAE SYSTEMS APPLIED INTELLIGENCE LIMITED,488778,12127.5,GB641407169
BEIS,Met Office,2024-02-16,11 SERVICES,TECHNOLOGY AND CIO,BAE SYSTEMS APPLIED INTELLIGENCE LIMITED,488774,12292.5,GB641407169
BEIS,Met Office,2024-02-16,11 SERVICES,TECHNOLOGY AND CIO,BAE SYSTEMS APPLIED INTELLIGENCE LIMITED,488771,12540,GB641407169
BEIS,Met Office,2024-02-15,11 SERVICES,TECHNOLOGY AND CIO,BAE SYSTEMS APPLIED INTELLIGENCE LIMITED,488784,12663,GB641407169
BEIS,Met Office,2024-02-16,11 SERVICES,TECHNOLOGY AND CIO,BAE SYSTEMS APPLIED INTELLIGENCE LIMITED,488776,16649.5,GB641407169
BEIS,Met Office,2024-02-16,11 SERVICES,TECHNOLOGY AND CIO,BAE SYSTEMS APPLIED INTELLIGENCE LIMITED,488779,16649.5,GB641407169
BEIS,Met Office,2024-02-16,11 SERVICES,TECHNOLOGY AND CIO,BAE SYSTEMS APPLIED INTELLIGENCE LIMITED,488782,17822,GB641407169
BEIS,Met Office,2024-02-09,11 SERVICES,TECHNOLOGY AND CIO,BJSS LIMITED,488529,10625,613295452
BEIS,Met Office,2024-02-09,11 SERVICES,TECHNOLOGY AND CIO,BJSS LIMITED,488557,70517,613295452
BEIS,Met Office,2024-02-06,08 SOFTWARE LICENCES,TECHNOLOGY AND CIO,BMC SOFTWARE DISTRIBUTION B.V.,488392,8614.71,-
BEIS,Met Office,2024-02-29,08 SOFTWARE LICENCES,TECHNOLOGY AND CIO,BOXXE,489299,41699.88,734245248
BEIS,Met Office,2024-02-28,07 EQUIPMENT,TECHNOLOGY AND CIO,CDW LTD,489114,321.35,902194939
BEIS,Met Office,2024-02-28,07 EQUIPMENT,TECHNOLOGY AND CIO,CDW LTD,489114,394,902194939
BEIS,Met Office,2024-02-22,10 EQUIPMENT MAINTENANCE,TECHNOLOGY AND CIO,CDW LTD,489023,1549.86,902194939
BEIS,Met Office,2024-02-27,10 EQUIPMENT MAINTENANCE,TECHNOLOGY AND CIO,CDW LTD,489024,46111.42,902194939
BEIS,Met Office,2024-02-14,11 SERVICES,TECHNOLOGY AND CIO,CLOUDREACH EUROPE LIMITED,488727,4096.24,978187168
BEIS,Met Office,2024-02-15,11 SERVICES,TECHNOLOGY AND CIO,CLOUDREACH EUROPE LIMITED,488785,5150,978187168
BEIS,Met Office,2024-02-28,07 EQUIPMENT,TECHNOLOGY AND CIO,COMPUTACENTER (UK) LTD,489232,24.17,490334648
BEIS,Met Office,2024-02-28,07 EQUIPMENT,TECHNOLOGY AND CIO,COMPUTACENTER (UK) LTD,489235,75.03,490334648
BEIS,Met Office,2024-02-01,07 EQUIPMENT,TECHNOLOGY AND CIO,COMPUTACENTER (UK) LTD,488198,1504.64,490334648
BEIS,Met Office,2024-02-22,07 EQUIPMENT,TECHNOLOGY AND CIO,COMPUTACENTER (UK) LTD,488993,1861.5,490334648
BEIS,Met Office,2024-02-08,07 EQUIPMENT,TECHNOLOGY AND CIO,COMPUTACENTER (UK) LTD,488556,1969.32,490334648
BEIS,Met Office,2024-02-01,10 EQUIPMENT MAINTENANCE,TECHNOLOGY AND CIO,COMPUTACENTER (UK) LTD,488101,2779.74,490334648
BEIS,Met Office,2024-02-07,08 SOFTWARE LICENCES,TECHNOLOGY AND CIO,COMPUTACENTER (UK) LTD,487969,3051,490334648
BEIS,Met Office,2024-02-16,11 SERVICES,TECHNOLOGY AND CIO,COMPUTACENTER (UK) LTD,488858,3789.47,490334648
BEIS,Met Office,2024-02-29,11 SERVICES,TECHNOLOGY AND CIO,COMPUTACENTER (UK) LTD,489233,4521.05,490334648
BEIS,Met Office,2024-02-22,08 SOFTWARE LICENCES,TECHNOLOGY AND CIO,COMPUTACENTER (UK) LTD,488992,4529.04,490334648
BEIS,Met Office,2024-02-29,07 EQUIPMENT,TECHNOLOGY AND CIO,COMPUTACENTER (UK) LTD,489234,5971.1,490334648
BEIS,Met Office,2024-02-16,07 EQUIPMENT,TECHNOLOGY AND CIO,COMPUTACENTER (UK) LTD,488859,7345,490334648
BEIS,Met Office,2024-02-08,11 SERVICES,TECHNOLOGY AND CIO,ENTERPRISEDB UK LIMITED,488516,17736,GB 886 1062 11
BEIS,Met Office,2024-02-12,11 SERVICES,TECHNOLOGY AND CIO,EXPONENTIAL-E,488606,3354.58,GB798572653
BEIS,Met Office,2024-02-12,11 SERVICES,TECHNOLOGY AND CIO,EXPONENTIAL-E,487912,6100,GB798572653
BEIS,Met Office,2024-02-12,11 SERVICES,TECHNOLOGY AND CIO,EXPONENTIAL-E,487912,8842.03,GB798572653
BEIS,Met Office,2024-02-07,11 SERVICES,TECHNOLOGY AND CIO,GARTNER UK LTD,488372,3783.33,635878884
BEIS,Met Office,2024-02-05,08 SOFTWARE LICENCES,TECHNOLOGY AND CIO,GOOGLE IRELAND LTD,488335,50.56,6388047V
BEIS,Met Office,2024-02-07,08 SOFTWARE LICENCES,TECHNOLOGY AND CIO,"IBL SOFTWARE ENGINEERING, SPOL S.R.O.",25574,4742.91,SK2020241883
BEIS,Met Office,2024-02-05,08 SOFTWARE LICENCES,TECHNOLOGY AND CIO,Ibm United Kingdom Ltd,488365,7300.9,107328000
BEIS,Met Office,2024-02-09,11 SERVICES,TECHNOLOGY AND CIO,LAFOSSE ASSOCIATES,488624,-15004.08,GB 360026537
BEIS,Met Office,2024-02-09,11 SERVICES,TECHNOLOGY AND CIO,LAFOSSE ASSOCIATES,488614,15004.08,GB 360026537
BEIS,Met Office,2024-02-09,11 SERVICES,TECHNOLOGY AND CIO,LAFOSSE ASSOCIATES,488626,15004.08,GB 360026537
BEIS,Met Office,2024-02-28,11 SERVICES,TECHNOLOGY AND CIO,Microsoft Ltd,489166,104116,724594615
BEIS,Met Office,2024-02-15,11 SERVICES,TECHNOLOGY AND CIO,MOMENTUM INCORPORATED,488806,2000,598958541
BEIS,Met Office,2024-02-21,11 SERVICES,TECHNOLOGY AND CIO,NEXUS OPEN SYSTEMS LTD,488988,15500,723221673
BEIS,Met Office,2024-02-08,11 SERVICES,TECHNOLOGY AND CIO,NORBECK LTD,488543,3959.66,543334559
BEIS,Met Office,2024-02-05,08 SOFTWARE LICENCES,TECHNOLOGY AND CIO,Presentation Cartography Ltd,488163,0.1,-
BEIS,Met Office,2024-02-28,08 SOFTWARE LICENCES,TECHNOLOGY AND CIO,Presentation Cartography Ltd,489230,10.74,-
BEIS,Met Office,2024-02-28,08 SOFTWARE LICENCES,TECHNOLOGY AND CIO,Presentation Cartography Ltd,489230,42.97,-
BEIS,Met Office,2024-02-05,08 SOFTWARE LICENCES,TECHNOLOGY AND CIO,Presentation Cartography Ltd,488163,80.58,-
BEIS,Met Office,2024-02-28,08 SOFTWARE LICENCES,TECHNOLOGY AND CIO,Presentation Cartography Ltd,489230,268.58,-
BEIS,Met Office,2024-02-07,08 SOFTWARE LICENCES,TECHNOLOGY AND CIO,Presentation Cartography Ltd,488481,283.67,-
BEIS,Met Office,2024-02-07,08 SOFTWARE LICENCES,TECHNOLOGY AND CIO,Presentation Cartography Ltd,488481,300.81,-
BEIS,Met Office,2024-02-05,08 SOFTWARE LICENCES,TECHNOLOGY AND CIO,Presentation Cartography Ltd,488163,334.13,-
BEIS,Met Office,2024-02-28,08 SOFTWARE LICENCES,TECHNOLOGY AND CIO,Presentation Cartography Ltd,489230,1074.32,-
BEIS,Met Office,2024-02-07,08 SOFTWARE LICENCES,TECHNOLOGY AND CIO,Presentation Cartography Ltd,488481,1632.97,-
BEIS,Met Office,2024-02-05,08 SOFTWARE LICENCES,TECHNOLOGY AND CIO,Presentation Cartography Ltd,488163,2014.48,-
BEIS,Met Office,2024-02-07,08 SOFTWARE LICENCES,TECHNOLOGY AND CIO,Presentation Cartography Ltd,488481,7091.76,-
BEIS,Met Office,2024-02-07,08 SOFTWARE LICENCES,TECHNOLOGY AND CIO,Presentation Cartography Ltd,488481,7520.24,-
BEIS,Met Office,2024-02-05,08 SOFTWARE LICENCES,TECHNOLOGY AND CIO,Presentation Cartography Ltd,488163,8353.28,-
BEIS,Met Office,2024-02-07,08 SOFTWARE LICENCES,TECHNOLOGY AND CIO,Presentation Cartography Ltd,488481,40824.16,-
BEIS,Met Office,2024-02-21,08 SOFTWARE LICENCES,TECHNOLOGY AND CIO,PROSPERON NETWORKS LTD,488999,4630.44,889545649
BEIS,Met Office,2024-02-09,11 SERVICES,TECHNOLOGY AND CIO,QA LTD,465462,-2088,864455303
BEIS,Met Office,2024-02-09,11 SERVICES,TECHNOLOGY AND CIO,QA LTD,466499,-2088,864455303
BEIS,Met Office,2024-02-15,11 SERVICES,TECHNOLOGY AND CIO,QA LTD,488711,-600,864455303
BEIS,Met Office,2024-02-09,11 SERVICES,TECHNOLOGY AND CIO,QA LTD,452931,-584,864455303
BEIS,Met Office,2024-02-09,11 SERVICES,TECHNOLOGY AND CIO,QA LTD,452934,584,864455303
BEIS,Met Office,2024-02-15,11 SERVICES,TECHNOLOGY AND CIO,QA LTD,488801,900,864455303
BEIS,Met Office,2024-02-09,11 SERVICES,TECHNOLOGY AND CIO,QA LTD,465052,2088,864455303
BEIS,Met Office,2024-02-09,11 SERVICES,TECHNOLOGY AND CIO,QA LTD,466240,2088,864455303
BEIS,Met Office,2024-02-13,11 SERVICES,TECHNOLOGY AND CIO,QA LTD,488609,4090,864455303
BEIS,Met Office,2024-02-15,11 SERVICES,TECHNOLOGY AND CIO,QA LTD,488095,4500,864455303
BEIS,Met Office,2024-02-13,11 SERVICES,TECHNOLOGY AND CIO,QA LTD,488703,5100,864455303
BEIS,Met Office,2024-02-13,11 SERVICES,TECHNOLOGY AND CIO,QA LTD,488707,5400,864455303
BEIS,Met Office,2024-02-14,11 SERVICES,TECHNOLOGY AND CIO,QA LTD,488702,5430,864455303
BEIS,Met Office,2024-02-22,11 SERVICES,TECHNOLOGY AND CIO,QA LTD,488705,6000,864455303
BEIS,Met Office,2024-02-14,11 SERVICES,TECHNOLOGY AND CIO,QA LTD,488708,6000,864455303
BEIS,Met Office,2024-02-13,11 SERVICES,TECHNOLOGY AND CIO,QA LTD,488704,6300,864455303
BEIS,Met Office,2024-02-14,11 SERVICES,TECHNOLOGY AND CIO,QA LTD,488706,6300,864455303
BEIS,Met Office,2024-02-14,11 SERVICES,TECHNOLOGY AND CIO,QA LTD,488709,6300,864455303
BEIS,Met Office,2024-02-22,11 SERVICES,TECHNOLOGY AND CIO,QA LTD,489029,6450,864455303
BEIS,Met Office,2024-02-22,11 SERVICES,TECHNOLOGY AND CIO,QA LTD,489028,6600,864455303
BEIS,Met Office,2024-02-19,11 SERVICES,TECHNOLOGY AND CIO,QA LTD,488710,7038.9,864455303
BEIS,Met Office,2024-02-22,11 SERVICES,TECHNOLOGY AND CIO,QA LTD,488701,12000,864455303
BEIS,Met Office,2024-02-22,11 SERVICES,TECHNOLOGY AND CIO,QA LTD,488960,12900,864455303
BEIS,Met Office,2024-02-09,11 SERVICES,TECHNOLOGY AND CIO,REDROCK CONSULTING LIMITED,488494,13600,862 2477 15
BEIS,Met Office,2024-02-19,11 SERVICES,TECHNOLOGY AND CIO,ROWE IT LTD,488864,16325,924964394
BEIS,Met Office,2024-02-21,08 SOFTWARE LICENCES,TECHNOLOGY AND CIO,SCHEDMD LLC,11422,9305.43,-
BEIS,Met Office,2024-02-14,11 SERVICES,TECHNOLOGY AND CIO,Scottish Government,488768,128.7,888842551
BEIS,Met Office,2024-02-19,08 SOFTWARE LICENCES,TECHNOLOGY AND CIO,SECTIGO LTD,488909,9555,834875295
BEIS,Met Office,2024-02-19,08 SOFTWARE LICENCES,TECHNOLOGY AND CIO,SILICON REEF LTD,488908,60000,GB 254 7458 79
BEIS,Met Office,2024-02-08,08 SOFTWARE LICENCES,TECHNOLOGY AND CIO,SITEMORSE (UK SALES) LTD,488559,12045,928339691
BEIS,Met Office,2024-02-13,11 SERVICES,TECHNOLOGY AND CIO,SOFTCAT LTD,488612,2495,491848503
BEIS,Met Office,2024-02-28,08 SOFTWARE LICENCES,TECHNOLOGY AND CIO,SONARSOURCE SA,11430,4292.21,CHE-114.587.664
BEIS,Met Office,2024-02-28,11 SERVICES,TECHNOLOGY AND CIO,SPECIALIST COMPUTER CENTRES,489190,70.12,313651680
BEIS,Met Office,2024-02-05,08 SOFTWARE LICENCES,TECHNOLOGY AND CIO,SPECIALIST COMPUTER CENTRES,488395,327.68,313651680
BEIS,Met Office,2024-02-26,08 SOFTWARE LICENCES,TECHNOLOGY AND CIO,SPECIALIST COMPUTER CENTRES,489113,574,313651680
BEIS,Met Office,2024-02-13,11 SERVICES,TECHNOLOGY AND CIO,SPECIALIST COMPUTER CENTRES,487938,1835.72,313651680
BEIS,Met Office,2024-02-22,11 SERVICES,TECHNOLOGY AND CIO,SPECIALIST COMPUTER CENTRES,489018,29944.06,313651680
BEIS,Met Office,2024-02-06,08 SOFTWARE LICENCES,TECHNOLOGY AND CIO,SPECIALIST COMPUTER CENTRES,488377,35285.99,313651680
BEIS,Met Office,2024-02-12,11 SERVICES,TECHNOLOGY AND CIO,SSE CONTRACTING LTD,488495,10833.99,382894546
BEIS,Met Office,2024-02-15,11 SERVICES,TECHNOLOGY AND CIO,THE POSITIVE INTERNET COMPANY LIMITED,488610,13300,726707228
BEIS,Met Office,2024-02-15,11 SERVICES,TECHNOLOGY AND CIO,TRIAD GROUP PLC,488723,33630,GB492999762
BEIS,Met Office,2024-02-05,11 SERVICES,TECHNOLOGY AND CIO,WIREFAST LTD,488310,1348.27,749536001
BEIS,Met Office,2024-02-02,11 SERVICES,TECHNOLOGY AND CIO,WIREFAST LTD,488311,1705,749536001
BEIS,Met Office,2024-02-02,11 SERVICES,TECHNOLOGY AND CIO,WIREFAST LTD,488312,1967.46,749536001
BEIS,Met Office,2024-02-29,11 SERVICES,TECHNOLOGY AND CIO,WT CONSULTANCY (SW) LTD,489215,1400,223 4662 25
BEIS,Met Office,2024-02-27,Unknown,Unknown,City Of Edinburgh Council,394824,0,663795391
BEIS,Met Office,2024-02-27,Unknown,Unknown,GOODMAN CENTRAL RECEIPTS ACCOUNT,361133,0,813041380
BEIS,Met Office,2024-02-22,Unknown,Unknown,SWETS INFORMATION SERVICES LTD,356450,0,749957067
BEIS,Met Office,2024-02-22,Unknown,Unknown,SWETS INFORMATION SERVICES LTD,358128,0,749957067
